{"text_format":"1","workbook":"xlsx","n_sheets":8,"sheets":["Інструкції","1.Виклики та можливості","2.Вибір категорій послуг","3.Перегл послуг в парку","3.Перегл послуг I4.0 (опціонал)","3.Резюме","4.Сфера послуг","5.Планування заходів"],"not_rendered":{"charts":0,"images":14,"macros":1,"external_links":0,"defined_names":21,"comments":0,"pivot_tables":2},"unopened":[],"bounds":{"document_bytes":16777216,"sheet_cells":100000,"rows_first":2000,"rows_last":500,"rows_between":2000,"halvings":0,"cell_chars":16384,"cell_head_chars":4096},"cells_cut":0,"cells_raw":0,"read":"whole","date_system":"1900"}

{"sheet":"Інструкції","index":0,"n_rows":154,"n_cols":72,"rows_kept":154,"cut":false,"hidden":false,"merged":[[57,54,58,63],[57,64,58,70],[57,71,58,79],[59,54,60,63],[59,64,60,70],[59,71,60,79],[68,2,68,13],[68,17,80,50],[69,54,70,63],[69,64,70,70],[73,64,74,70],[73,71,74,79],[75,54,76,63],[71,64,72,70],[71,71,72,79],[73,54,74,63],[61,64,62,70],[61,71,62,79],[63,54,64,63],[63,64,64,70],[63,71,64,79],[65,54,66,63],[65,64,66,70],[65,71,66,79],[3,1,3,80],[5,1,5,80],[7,1,7,80],[10,1,10,80],[13,1,13,80],[15,1,16,80],[22,2,22,13],[22,54,22,79],[17,54,17,79],[18,54,20,79],[22,17,22,50],[9,1,9,80],[11,1,11,80],[24,2,24,13],[24,17,33,50],[24,54,25,63],[24,64,25,70],[24,71,25,79],[25,2,33,13],[32,54,33,63],[32,64,33,70],[32,71,33,79],[26,54,27,63],[26,64,27,70],[26,71,27,79],[28,54,29,63],[28,64,29,70],[28,71,29,79],[30,54,31,63],[30,64,31,70],[30,71,31,79],[46,2,46,13],[46,17,55,50],[46,54,47,63],[46,64,47,70],[46,71,47,79],[48,54,49,63],[48,64,49,70],[48,71,49,79],[50,54,51,63],[50,64,51,70],[50,71,51,79],[54,54,55,63],[54,64,55,70],[54,71,55,79],[52,54,53,63],[52,64,53,70],[52,71,53,79],[115,61,115,79],[113,23,113,40],[114,23,114,40],[115,23,115,40],[113,42,113,59],[115,42,115,59],[77,54,78,63],[77,64,78,70],[77,71,78,79],[83,1,83,80],[69,2,80,13],[71,54,72,63],[75,64,76,70],[75,71,76,79],[69,71,70,79],[147,1,149,80],[87,12,95,42],[87,46,95,80],[85,12,85,46],[85,48,85,79],[143,1,143,14],[113,2,113,21],[114,2,114,21],[115,2,115,21],[113,61,113,79],[114,61,114,79],[97,1,97,80],[99,3,99,13],[108,3,108,13],[99,20,99,34],[108,19,108,33],[108,45,108,55],[99,45,100,55],[107,45,107,55],[108,67,108,77],[99,67,100,77],[140,1,140,80],[126,1,126,80],[111,1,111,80],[35,2,35,13],[35,17,44,50],[58,2,66,13],[36,2,44,13],[35,54,36,63],[35,64,36,70],[35,71,36,79],[37,54,38,63],[37,64,38,70],[37,71,38,79],[39,54,40,63],[39,64,40,70],[39,71,40,79],[41,54,42,63],[41,64,42,70],[41,71,42,79],[43,54,44,63],[43,64,44,70],[43,71,44,79],[47,2,51,13],[52,2,55,13],[57,2,57,13],[57,17,66,50],[61,54,62,63]]}
[null,"Інструмент ЮНІДО для еко-індустріальних парків щодо управління послугами"]
[null,"ІНСТРУМЕНТ ЕІП ДЛЯ УПРАВЛІННЯ ПОСЛУГАМИ: ІНСТРУКЦІЇ"]
[]
[null,"ОБГРУНТУВАННЯ ІНСТРУМЕНТУ"]
[]
[null,"У багатьох індустріальних парках керівництво парку надає «традиційні» послуги своїм компаніям-резидентам, такі як оренда/продаж промислової землі компаніям-резидентам; оплата електроенергії та водопостачання; утримання доріг, огорож, адміністративних будівель у парку; і основні послуги безпеки. Однак керівництво парку може надати багато додаткових послуг, щоб:\n• допомогти компаніям-резидентам підвищити їх економічну, екологічну та соціальну ефективність;\n• зменшити ризики парку та компаній, підкреслюючи, що екологічні та соціальні ризики є ризиками бізнесу;\n• створити більш ресурсоефективний та економічно ефективний індустріальний парк, більш конкурентоспроможний, інвестиційно привабливий;\n• дозволити компаніям-резидентам зосередитися на основному бізнесі, створити умови для економії коштів завдяки синергії послуг.\n\nКрім того, \"Індустрія 4.0\" надає нові рішення для виробничого ланцюга створення доданої вартості через розвиток інформаційно-комунікаційних технологій (наприклад, Інтернет речей) і інтелектуальні рішення з автоматизації процесів, які застосовуються до управління індустріальними парками та компаніями-резидентами. \"Індустрія 4.0\" матиме значний вплив на проектування та функціонування промислових процесів і індустріальних парків.\n"]
[]
[null,"ЦІЛІ ІНСТРУМЕНТУ"]
[]
[null,"Метою цього інструменту є зміцнення та розвиток послуг, що надаються керівництвом парку компаніям-резидентам, і таким чином підвищити «співвідношення ціни та якості», що надається керівництвом парку компаніям-резидентам, і забезпечити/збільшити доходи суб’єкта управління парком. Інструмент допомагає керуючим органам індустріальних парків і компаніям-резидентам переглядати, пріоритезувати, охоплювати та планувати дії щодо відповідних цільових послуг і послуг з доданою вартістю для їхніх парків і компаній-резидентів."]
[null,"Надалі, Інструмент допомагатиме індустріальному парку в роботі відповідно до Міжнародних рамкових вимог до еко-індустріальних парків (UNIDO, WBG, GIZ)."]
[null,"З огляду на те, що \"Індустрія 4.0\" надає можливість керівництву парку розширювати свої послуги компаніям-резидентам для підвищення їх конкурентоспроможності та ефективності, цей інструмент містить додаткові аркуші щодо конкретних послуг \"Індустрії 4.0\", які керівництво парку може також розглянути."]
[]
[null,"КРОКИ ТА ІНСТРУКЦІЇ"]
[]
[null,"Інструмент призначений для використання органами управління парком у тісній співпраці з їх компаніями-резидентами, за потреби за підтримки постачальників послуг (наприклад, національних центрів чистого виробництва, консультаційних компаній) та/або міжнародних агенцій розвитку (наприклад, співробітників UNIDO)."]
[]
[null,null,null,null,null,null,null,null,null,null,null,null,null,null,null,null,null,null,null,null,null,null,null,null,null,null,null,null,null,null,null,null,null,null,null,null,null,null,null,null,null,null,null,null,null,null,null,null,null,null,null,null,null,null,"Місце, де можна робити кроки"]
[null,null,null,null,null,null,null,null,null,null,null,null,null,null,null,null,null,null,null,null,null,null,null,null,null,null,null,null,null,null,null,null,null,null,null,null,null,null,null,null,null,null,null,null,null,null,null,null,null,null,null,null,null,null,"В ідеалі всі етапи виконуються в офісі керівництва індустріального парку або під час тренінгів із керівництвом парку та компаніями-резидентами. За потреби кроки також можна виконати онлайн за допомогою спільного доступу до екрана/файлів."]
[]
[]
[]
[null,null,"КРОКИ В ІНСТРУМЕНТІ",null,null,null,null,null,null,null,null,null,null,null,null,null,null,"ДЕТАЛЬНІ ІНСТРУКЦІЇ",null,null,null,null,null,null,null,null,null,null,null,null,null,null,null,null,null,null,null,null,null,null,null,null,null,null,null,null,null,null,null,null,null,null,null,null,"ОЧІКУВАНИЙ ЧАС ЗАПОВНЕННЯ ІНСТРУМЕНТУ"]
[]
[null,null,"КРОК 1",null,null,null,null,null,null,null,null,null,null,null,null,null,null,"Цей крок допомагає керівництву парку та компаніям-резидентам узагальнити основні виклики, можливості та стратегічні проблеми, з якими стикається їхній індустріальний парк. Цей крок робиться як початковий крок, оскільки послуги з доданою вартістю, що надаються органами управління парком, мають ідеально відповідати основним загальним викликам і можливостям, з якими стикаються індустріальний парк і компанії-резиденти.\n\nВиклики та можливості розглядаються з економічної, екологічної та соціальної точки зору.\n",null,null,null,null,null,null,null,null,null,null,null,null,null,null,null,null,null,null,null,null,null,null,null,null,null,null,null,null,null,null,null,null,null,null,null,null,"Витрати часу залежать від бажаного рівня деталізації",null,null,null,null,null,null,null,null,null,"Простий базовий \nаналіз",null,null,null,null,null,null,"Детальний\nаналіз"]
[null,null,"Узагальніть основні виклики, можливості та стратегічні проблеми, з якими стикається індустріальний парк"]
[null,null,null,null,null,null,null,null,null,null,null,null,null,null,null,null,null,null,null,null,null,null,null,null,null,null,null,null,null,null,null,null,null,null,null,null,null,null,null,null,null,null,null,null,null,null,null,null,null,null,null,null,null,null,"Керівництво індустріального парку",null,null,null,null,null,null,null,null,null,"0.25 людино-дня",null,null,null,null,null,null,"0.5 людино-дня"]
[]
[null,null,null,null,null,null,null,null,null,null,null,null,null,null,null,null,null,null,null,null,null,null,null,null,null,null,null,null,null,null,null,null,null,null,null,null,null,null,null,null,null,null,null,null,null,null,null,null,null,null,null,null,null,null,"На одну компанію-резидента",null,null,null,null,null,null,null,null,null,"0.1 людино-дня",null,null,null,null,null,null,"0.25 людино-дня"]
[]
[null,null,null,null,null,null,null,null,null,null,null,null,null,null,null,null,null,null,null,null,null,null,null,null,null,null,null,null,null,null,null,null,null,null,null,null,null,null,null,null,null,null,null,null,null,null,null,null,null,null,null,null,null,null,"ЕІП експерт/консультант",null,null,null,null,null,null,null,null,null,"0.5 людино-дня",null,null,null,null,null,null,"1 людино-день"]
[]
[null,null,null,null,null,null,null,null,null,null,null,null,null,null,null,null,null,null,null,null,null,null,null,null,null,null,null,null,null,null,null,null,null,null,null,null,null,null,null,null,null,null,null,null,null,null,null,null,null,null,null,null,null,null,"Менеджер/координатор агенції розвитку",null,null,null,null,null,null,null,null,null,"0.1 людино-дня",null,null,null,null,null,null,"0.25 людино-дня"]
[]
[]
[null,null,"КРОК 2",null,null,null,null,null,null,null,null,null,null,null,null,null,null,"Метою цього кроку є «швидке сканування» всіх категорій послуг, включених до інструменту, і вибір категорій для детального перегляду на наступному кроці інструменту. Цей крок дозволить ефективно використовувати інструмент у наступних кроках.\n\nЦей крок також включає додаткові категорії послуг \"Індустрії 4.0\".",null,null,null,null,null,null,null,null,null,null,null,null,null,null,null,null,null,null,null,null,null,null,null,null,null,null,null,null,null,null,null,null,null,null,null,null,"Витрати часу залежать від бажаного рівня деталізації",null,null,null,null,null,null,null,null,null,"Простий базовий \nаналіз",null,null,null,null,null,null,"Детальний\nаналіз"]
[null,null,"Виберіть категорії послуг для детального перегляду"]
[null,null,null,null,null,null,null,null,null,null,null,null,null,null,null,null,null,null,null,null,null,null,null,null,null,null,null,null,null,null,null,null,null,null,null,null,null,null,null,null,null,null,null,null,null,null,null,null,null,null,null,null,null,null,"Керівництво індустріального парку",null,null,null,null,null,null,null,null,null,"0.1 людино-дня",null,null,null,null,null,null,"0.25 людино-дня"]
[]
[null,null,null,null,null,null,null,null,null,null,null,null,null,null,null,null,null,null,null,null,null,null,null,null,null,null,null,null,null,null,null,null,null,null,null,null,null,null,null,null,null,null,null,null,null,null,null,null,null,null,null,null,null,null,"На одну компанію-резидента",null,null,null,null,null,null,null,null,null,"0.1 людино-дня",null,null,null,null,null,null,"0.25 людино-дня"]
[]
[null,null,null,null,null,null,null,null,null,null,null,null,null,null,null,null,null,null,null,null,null,null,null,null,null,null,null,null,null,null,null,null,null,null,null,null,null,null,null,null,null,null,null,null,null,null,null,null,null,null,null,null,null,null,"ЕІП експерт/консультант",null,null,null,null,null,null,null,null,null,"0.25 людино-дня",null,null,null,null,null,null,"0.5 людино-дня"]
[]
[null,null,null,null,null,null,null,null,null,null,null,null,null,null,null,null,null,null,null,null,null,null,null,null,null,null,null,null,null,null,null,null,null,null,null,null,null,null,null,null,null,null,null,null,null,null,null,null,null,null,null,null,null,null,"Менеджер/координатор агенції розвитку",null,null,null,null,null,null,null,null,null,"0.1 людино-дня",null,null,null,null,null,null,"0.25 людино-дня"]
[]
[]
[null,null,"КРОК 3",null,null,null,null,null,null,null,null,null,null,null,null,null,null,"Цей крок допомагає керівництву парку та компаніям-резидентам переглянути довгий список класифікованих послуг з доданою вартістю та визначити конкретні послуги для індустріального парку.\n\nПослуги з доданою вартістю встановлюються після їх оцінки на основі їхньої очікуваної реалізації, переваг, зацікавленості керівництва парку та компаній-резидентів.\n\nПослуги з доданою вартістю, які є найбільш досяжними, показують найвищі очікувані вигоди та інтерес з боку керівництва парку / компаній, є пріоритетними та рекомендованими для короткострокових дій.\n",null,null,null,null,null,null,null,null,null,null,null,null,null,null,null,null,null,null,null,null,null,null,null,null,null,null,null,null,null,null,null,null,null,null,null,null,"Витрати часу залежать від бажаного рівня деталізації",null,null,null,null,null,null,null,null,null,"Простий базовий \nаналіз",null,null,null,null,null,null,"Детальний\nаналіз"]
[null,null,"Перегляньте та визначте пріоритети потенційних додаткових послуг з управління парком"]
[null,null,null,null,null,null,null,null,null,null,null,null,null,null,null,null,null,null,null,null,null,null,null,null,null,null,null,null,null,null,null,null,null,null,null,null,null,null,null,null,null,null,null,null,null,null,null,null,null,null,null,null,null,null,"Керівництво індустріального парку",null,null,null,null,null,null,null,null,null,"0.5 людино-дня",null,null,null,null,null,null,"1 людино-день"]
[]
[null,null,null,null,null,null,null,null,null,null,null,null,null,null,null,null,null,null,null,null,null,null,null,null,null,null,null,null,null,null,null,null,null,null,null,null,null,null,null,null,null,null,null,null,null,null,null,null,null,null,null,null,null,null,"На одну компанію-резидента",null,null,null,null,null,null,null,null,null,"0.25 людино-дня",null,null,null,null,null,null,"0.5 людино-дня"]
[]
[null,null,null,null,null,null,null,null,null,null,null,null,null,null,null,null,null,null,null,null,null,null,null,null,null,null,null,null,null,null,null,null,null,null,null,null,null,null,null,null,null,null,null,null,null,null,null,null,null,null,null,null,null,null,"ЕІП експерт/консультант",null,null,null,null,null,null,null,null,null,"1 людино-день",null,null,null,null,null,null,"2 людино-дня"]
[]
[null,null,null,null,null,null,null,null,null,null,null,null,null,null,null,null,null,null,null,null,null,null,null,null,null,null,null,null,null,null,null,null,null,null,null,null,null,null,null,null,null,null,null,null,null,null,null,null,null,null,null,null,null,null,"Менеджер/координатор агенції розвитку",null,null,null,null,null,null,null,null,null,"0.25 людино-дня",null,null,null,null,null,null,"0.5 людино-дня"]
[]
[]
[null,null,"КРОК 4",null,null,null,null,null,null,null,null,null,null,null,null,null,null,"Цей крок допомагає керівництву парку та компаніям-резидентам визначити пріоритетні послуги з доданою вартістю в наступному:\n\n• Конкретні напрями та функції, які мають бути включені до додаткових послуг\n• Варіанти відшкодування витрат та/або розподілу вигод\n• Цільові компанії-резиденти \n• Фактори успіху для розробки та впровадження додаткових послуг\n• Потенційні виклики та засоби їх вирішення\n",null,null,null,null,null,null,null,null,null,null,null,null,null,null,null,null,null,null,null,null,null,null,null,null,null,null,null,null,null,null,null,null,null,null,null,null,"Витрати часу залежать від бажаного рівня деталізації",null,null,null,null,null,null,null,null,null,"Простий базовий \nаналіз",null,null,null,null,null,null,"Детальний\nаналіз"]
[null,null,"Сфера пріоритетних додаткових послуг з управління парком"]
[null,null,null,null,null,null,null,null,null,null,null,null,null,null,null,null,null,null,null,null,null,null,null,null,null,null,null,null,null,null,null,null,null,null,null,null,null,null,null,null,null,null,null,null,null,null,null,null,null,null,null,null,null,null,"Керівництво індустріального парку",null,null,null,null,null,null,null,null,null,"1 людино-день",null,null,null,null,null,null,"2 людино-дня"]
[]
[null,null,null,null,null,null,null,null,null,null,null,null,null,null,null,null,null,null,null,null,null,null,null,null,null,null,null,null,null,null,null,null,null,null,null,null,null,null,null,null,null,null,null,null,null,null,null,null,null,null,null,null,null,null,"На одну компанію-резидента",null,null,null,null,null,null,null,null,null,"0.25 людино-дня",null,null,null,null,null,null,"0.5 людино-дня"]
[]
[null,null,null,null,null,null,null,null,null,null,null,null,null,null,null,null,null,null,null,null,null,null,null,null,null,null,null,null,null,null,null,null,null,null,null,null,null,null,null,null,null,null,null,null,null,null,null,null,null,null,null,null,null,null,"ЕІП експерт/консультант",null,null,null,null,null,null,null,null,null,"2 людино-дня",null,null,null,null,null,null,"3 людино-дня"]
[]
[null,null,null,null,null,null,null,null,null,null,null,null,null,null,null,null,null,null,null,null,null,null,null,null,null,null,null,null,null,null,null,null,null,null,null,null,null,null,null,null,null,null,null,null,null,null,null,null,null,null,null,null,null,null,"Менеджер/координатор агенції розвитку",null,null,null,null,null,null,null,null,null,"0.25 людино-дня",null,null,null,null,null,null,"0.5 людино-дня"]
[]
[]
[null,null,"КРОК 5",null,null,null,null,null,null,null,null,null,null,null,null,null,null,"Після визначення обсягу пріоритетних послуг з доданою вартістю, цей крок спрямовує керівництво парку та компанії-резидентів до розробки практичного плану з короткостроковими діями щодо розробки та впровадження вибраних послуг.\nШаблон плану дій, наданий у цьому інструменті, охоплює такі елементи:\n• Ключові короткострокові дії\n• Головна роль\n• Допоміжна роль\n• Часовий період\n• Коментарі та прогрес заходів\n\nВизнаючи, що керівництво парку, можливо, вже має системи для управління своєю діяльністю, передбачається, що планування дій пріоритетних послуг з доданою вартістю буде адаптовано до існуючих систем.\n"]
[null,null,"Планування дій для пріоритетних додаткових послуг з управління парком",null,null,null,null,null,null,null,null,null,null,null,null,null,null,null,null,null,null,null,null,null,null,null,null,null,null,null,null,null,null,null,null,null,null,null,null,null,null,null,null,null,null,null,null,null,null,null,null,null,null,null,"Витрати часу залежать від бажаного рівня деталізації",null,null,null,null,null,null,null,null,null,"Простий базовий \nаналіз",null,null,null,null,null,null,"Детальний\nаналіз"]
[]
[null,null,null,null,null,null,null,null,null,null,null,null,null,null,null,null,null,null,null,null,null,null,null,null,null,null,null,null,null,null,null,null,null,null,null,null,null,null,null,null,null,null,null,null,null,null,null,null,null,null,null,null,null,null,"Керівництво індустріального парку",null,null,null,null,null,null,null,null,null,"1 людино-день",null,null,null,null,null,null,"2 людино-дня"]
[]
[null,null,null,null,null,null,null,null,null,null,null,null,null,null,null,null,null,null,null,null,null,null,null,null,null,null,null,null,null,null,null,null,null,null,null,null,null,null,null,null,null,null,null,null,null,null,null,null,null,null,null,null,null,null,"На одну компанію-резидента",null,null,null,null,null,null,null,null,null,"0.25 людино-дня",null,null,null,null,null,null,"0.5 людино-дня"]
[]
[null,null,null,null,null,null,null,null,null,null,null,null,null,null,null,null,null,null,null,null,null,null,null,null,null,null,null,null,null,null,null,null,null,null,null,null,null,null,null,null,null,null,null,null,null,null,null,null,null,null,null,null,null,null,"ЕІП експерт/консультант",null,null,null,null,null,null,null,null,null,"1 людино-день",null,null,null,null,null,null,"2 людино-дня"]
[]
[null,null,null,null,null,null,null,null,null,null,null,null,null,null,null,null,null,null,null,null,null,null,null,null,null,null,null,null,null,null,null,null,null,null,null,null,null,null,null,null,null,null,null,null,null,null,null,null,null,null,null,null,null,null,"Менеджер/координатор агенції розвитку",null,null,null,null,null,null,null,null,null,"0.25 людино-дня",null,null,null,null,null,null,"0.5 людино-дня"]
[]
[]
[]
[]
[]
[null,"ПРИКЛАДИ ПРАКТИЧНОГО ЗАСТОСУВАННЯ"]
[]
[null,null,null,null,null,null,null,null,null,null,null,null,"Глобальні програми ресурсоефективного та чистішого виробництва та еко-промислових парків",null,null,null,null,null,null,null,null,null,null,null,null,null,null,null,null,null,null,null,null,null,null,null,null,null,null,null,null,null,null,null,null,null,null,null,"Уроки, отримані з досвіду застосування послуг з управління парком із доданою вартістю"]
[]
[null,null,null,null,null,null,null,null,null,null,null,null,"Цей інструмент ґрунтується на практичному досвіді управляючих компаній парків і компаній-резидентів індустріальних парків у багатьох країнах (наприклад, Китай, Колумбія, Єгипет, Індія, Індонезія, Марокко, Перу, Південна Африка, Україна та В’єтнам) у рамках Глобальної Програми ресурсоефективного та чистішого виробництва (РЕЧВ) (20012 - 2018) і Глобальної програми еко-індустріальних парків (2019-2023).\n\nВи можете завантажити інформацію про досягнення та ключові ідеї роботи еко-індустріального парку з Глобальної програми РЕЧВ, натиснувши на іконку публікації ліворуч.\n",null,null,null,null,null,null,null,null,null,null,null,null,null,null,null,null,null,null,null,null,null,null,null,null,null,null,null,null,null,null,null,null,null,"• У багатьох випадках додаткові послуги, які пропонує керівництво парку своїм компаніям-резидентам, є швидкими вигідними можливостями для індустріального парку, які часто не вимагають значних фінансових інвестицій.\n• Лідерство керівництва парку в координації та сприянні додатковим послугам з компаніями-резидентами та зовнішніми зацікавленими сторонами є критичним фактором успіху.\n• Керівництво парку може надати багато видів додаткових послуг. Важливо визначити найперспективніші послуги, які приносять найбільші переваги, досяжність та інтерес для керівництва парку та компаній-резидентів. Рекомендується поетапний підхід.\n"]
[]
[]
[]
[]
[]
[]
[]
[]
[]
[null,"КРАЩІ МІЖНАРОДНІ ПРАКТИКИ щодо ПОСЛУГ із доданою вартістю, які НАДАЮТЬСЯ КЕРІВНИЦТВОМ ПАРКУ"]
[]
[null,null,null,"EcoPlus, Австрія",null,null,null,null,null,null,null,null,null,null,null,null,null,null,null,null,"Kwinana Industries Council, Австралія",null,null,null,null,null,null,null,null,null,null,null,null,null,null,null,null,null,null,null,null,null,null,null,null,"Kalundborg Symbiosis / Центр симбіозу Данії",null,null,null,null,null,null,null,null,null,null,null,null,null,null,null,null,null,null,null,null,null,"Корейська корпорація індустріальних комплексів (KICOX)"]
[]
[]
[]
[]
[]
[]
[]
[null,null,null,null,null,null,null,null,null,null,null,null,null,null,null,null,null,null,null,null,null,null,null,null,null,null,null,null,null,null,null,null,null,null,null,null,null,null,null,null,null,null,null,null,null,"http://www.symbiosis.dk/en/"]
[null,null,null,"https://www.ecoplus.at/en/",null,null,null,null,null,null,null,null,null,null,null,null,null,null,null,"https://kic.org.au/",null,null,null,null,null,null,null,null,null,null,null,null,null,null,null,null,null,null,null,null,null,null,null,null,null,"https://symbiosecenter.dk/en/",null,null,null,null,null,null,null,null,null,null,null,null,null,null,null,null,null,null,null,null,null,"http://www.kicox.or.kr/"]
[]
[]
[null,"ДЛЯ ДОДАТКОВОГО ВИВЧЕННЯ ТЕМИ"]
[]
[null,null,"Де знайти більше інформації про інструменти ЮНІДО для ЕІП?",null,null,null,null,null,null,null,null,null,null,null,null,null,null,null,null,null,null,null,null,"Що ми маємо на увазі під еко-індустріальними парками?",null,null,null,null,null,null,null,null,null,null,null,null,null,null,null,null,null,null,"Як запровадити Памокві вимоги для ЕІП?",null,null,null,null,null,null,null,null,null,null,null,null,null,null,null,null,null,null,"Як ми впроваджуємо еко-індустріальні парки?"]
[null,null,"Керівництво для інструментів ЮНІДО щодо ЕІП",null,null,null,null,null,null,null,null,null,null,null,null,null,null,null,null,null,null,null,null,"Міжнародні рамкові вимоги до ЕІП",null,null,null,null,null,null,null,null,null,null,null,null,null,null,null,null,null,null,"Підручник для практиків у сфері ЕІП",null,null,null,null,null,null,null,null,null,null,null,null,null,null,null,null,null,null,"Підручник для впровадження ЕІП"]
[null,null,"(UNIDO, 2019)",null,null,null,null,null,null,null,null,null,null,null,null,null,null,null,null,null,null,null,null,"(UNIDO, World Bank Group, GIZ, 2017)",null,null,null,null,null,null,null,null,null,null,null,null,null,null,null,null,null,null,"(UNIDO, World Bank Group, GIZ and MOTIE 2018)",null,null,null,null,null,null,null,null,null,null,null,null,null,null,null,null,null,null," (UNIDO 2017)"]
[]
[]
[]
[]
[]
[]
[]
[]
[]
[]
[null,"ПЕРЕЛІК СКОРОЧЕНЬ"]
[]
[null,"ЕІП",null,null,null,null,"Еко-індустріальний парк",null,null,null,null,null,null,null,null,null,null,null,null,null,null,null,null,null,null,null,null,null,null,null,null,null,null,null,null,null,null,null,null,null,null,null,"АІ",null,null,null,null,"Штучний інтелект"]
[null,"ПГ",null,null,null,null,"Парниковий газ",null,null,null,null,null,null,null,null,null,null,null,null,null,null,null,null,null,null,null,null,null,null,null,null,null,null,null,null,null,null,null,null,null,null,null,"AR",null,null,null,null,"Доповнена реальність"]
[null,"GIZ",null,null,null,null,"Німецьке товариство міжнародного співробітництва",null,null,null,null,null,null,null,null,null,null,null,null,null,null,null,null,null,null,null,null,null,null,null,null,null,null,null,null,null,null,null,null,null,null,null,"IoT",null,null,null,null,"Інтернет речей"]
[null,"OHS",null,null,null,null,"Охорона праці",null,null,null,null,null,null,null,null,null,null,null,null,null,null,null,null,null,null,null,null,null,null,null,null,null,null,null,null,null,null,null,null,null,null,null,"MR",null,null,null,null,"Змішана реальність"]
[null,"РЕЧВ",null,null,null,null,"Ресурсоефективне та чисте виробництво",null,null,null,null,null,null,null,null,null,null,null,null,null,null,null,null,null,null,null,null,null,null,null,null,null,null,null,null,null,null,null,null,null,null,null,"M2M",null,null,null,null,"Машина з Машиною"]
[null,"SECO",null,null,null,null,"Державний секретаріат з економічних питань Швейцарії",null,null,null,null,null,null,null,null,null,null,null,null,null,null,null,null,null,null,null,null,null,null,null,null,null,null,null,null,null,null,null,null,null,null,null,"VR",null,null,null,null,"Віртуальна реальність"]
[null,"МСБ",null,null,null,null,"Підприємства малого і середнього розміру (< 250 працівників)"]
[null,"UNIDO",null,null,null,null,"Організація Об’єднаних Націй з промислового розвитку"]
[null,"WBG",null,null,null,null,"Група Світового Банку"]
[null,"WWTP",null,null,null,null,"Завод з очищення стічної води"]
[]
[]
[null,"ЗАПИТАННЯ АБО КОМЕНТАРІ"]
[]
[null,"Із запитаннями, коментарями та запитами щодо інформації звертайтеся на електронну адресу:"]
[]
[]
[null,"Версія інструменту: Січень 2024"]
[]
[null,"Відмова від відповідальності: ЮНІДО не несе відповідальності за застосування цього інструменту та його результати. Повна відповідальність за застосування інструменту покладається на користувача. Використані позначення та виклад матеріалу в цьому документі не означають висловлення будь-якої думки з боку ЮНІДО та її керівних органів щодо правового статусу чи статусу розвитку будь-якої країни, території, міста або району, їхніх органів влади або щодо визначення їхніх кордонів чи меж. Погляди, висловлені в цьому документі, належать авторам і не обов’язково відображають погляди ЮНІДО та її керівних органів."]
[]
[]
[]
[null,"Подяки: "]
[null,"Головним автором цього Інструменту є Дік ван Бірс (консультант ЮНІДО). Технічну підтримку та керівництво надав Клаус Тиркко (головний технічний радник ЮНІДО)."]
[null,"Глобальна програма еко-промислових парків (GEIPP) (2019-2023) стала можливою завдяки фінансуванню, наданому урядом Швейцарії через Державний секретаріат з економічних питань Швейцарії (SECO)."]

{"sheet":"1.Виклики та можливості","index":1,"n_rows":25,"n_cols":8,"rows_kept":25,"cut":false,"hidden":false,"merged":[[17,7,17,8],[14,7,14,8],[16,7,16,8],[19,4,19,6],[19,7,19,8],[17,4,17,6],[18,7,18,8],[6,1,6,8],[1,1,3,4],[21,1,24,1],[17,1,20,1],[9,1,12,1],[8,4,8,6],[9,4,9,6],[10,4,10,6],[12,4,12,6],[9,2,12,2],[13,2,16,2],[17,2,20,2],[21,2,24,2],[13,4,13,6],[14,4,14,6],[18,4,18,6],[13,1,16,1],[8,7,8,8],[9,7,9,8],[10,7,10,8],[12,7,12,8],[13,7,13,8],[11,4,11,6],[15,4,15,6],[16,4,16,6],[11,7,11,8],[15,7,15,8],[24,7,24,8],[20,4,20,6],[21,4,21,6],[23,4,23,6],[24,4,24,6],[21,7,21,8],[23,7,23,8],[20,7,20,8],[22,4,22,6],[22,7,22,8]]}
[null,"Інструмент ЮНІДО для еко-індустріальних парків щодо управління послугами"]
[null,"ПІДСУМОВУВАННЯ КЛЮЧОВИХ ВИКЛИКІВ, МОЖЛИВОСТЕЙ \nТА СТРАТЕГІЧНИХ ПРОБЛЕМ, З ЯКИМИ СТИКАЄТЬСЯ ІНДУСТРІАЛЬНИЙ ПАРК",null,null,null,"Назва індустріального парку:","Впишіть назву парку"]
[null,null,null,null,null,"Період оцінювання:","Впишіть дату"]
[null,null,null,null,null,"ПІБ оцінювача:","Впишіть ПІБ"]
[]
[]
[null,"Інструкція: на цьому етапі керівництво парку та компанії-резиденти підсумовують ключові виклики, можливості та стратегічні проблеми, з якими стикається їхній індустріальний парк. Послуги з додатковою вартістю, які надають організації з управління парком, ідеально відповідають основним загальним викликам і можливостям, з якими стикаються індустріальний парк і компанії-резиденти. Виклики та можливості розглядаються з економічної, екологічної та соціальної точки зору."]
[]
[null,"Категорія","Ілюстративні приклади викликів, можливостей та стратегіних проблем","Топ 3","З якими ключовими викликами, можливостями та стратегічними проблемами стикається індустріальний парк?",null,null,"Надайте додаткові коментарі"]
[null,"Економічні виклики, можливості та стратегічні питання","•Індустріальний парк бореться за залучення нових інвесторів\n\n• Підвищення вартості критичної сировини, необхідної компаніям-резидентам",1,"Будь ласка, впишіть один ключовий виклик, можливість, стратегічну проблему сюди"]
[null,null,null,2,"Будь ласка, впишіть один ключовий виклик, можливість, стратегічну проблему сюди"]
[null,null,null,3,"Будь ласка, впишіть один ключовий виклик, можливість, стратегічну проблему сюди"]
[null,null,null,4,"Будь ласка, впишіть один ключовий виклик, можливість, стратегічну проблему сюди"]
[null,"Екологічні виклики, можливості та стратегічні питання","• Збільшення дефіциту води призводить до посилення тиску на парк/компанії щодо скорочення використання води\n\n• Старі неефективні технології (наприклад, котли), якими керують компанії-резиденти, призводять до високого споживання енергії та забруднення повітря",1,"Будь ласка, впишіть один ключовий виклик, можливість, стратегічну проблему сюди"]
[null,null,null,2,"Будь ласка, впишіть один ключовий виклик, можливість, стратегічну проблему сюди"]
[null,null,null,3,"Будь ласка, впишіть один ключовий виклик, можливість, стратегічну проблему сюди"]
[null,null,null,4,"Будь ласка, впишіть один ключовий виклик, можливість, стратегічну проблему сюди"]
[null,"Соціальні \nвиклики, можливості та стратегічні питання","• Напруга з місцевими громадами щодо їхніх очікувань від парку/компаній щодо створення нових робочих місць\n\n• Забруднення стічними водами, створене деякими компаніями-резидентами, впливає на місцеві річки та місцеві громади",1,"Будь ласка, впишіть один ключовий виклик, можливість, стратегічну проблему сюди"]
[null,null,null,2,"Будь ласка, впишіть один ключовий виклик, можливість, стратегічну проблему сюди"]
[null,null,null,3,"Будь ласка, впишіть один ключовий виклик, можливість, стратегічну проблему сюди"]
[null,null,null,4,"Будь ласка, впишіть один ключовий виклик, можливість, стратегічну проблему сюди"]
[null,"Інші\nвиклики, можливості та стратегічні питання","• Невизначеність щодо впливу \"Індустрії 4.0\" на індустріальний парк та компанії-резидентів\n\n* Відсутність поточної співпраці між компаніями-резидентами та навколишніми компаніями, що призводить до втрачених можливостей. ",1,"Будь ласка, впишіть один ключовий виклик, можливість, стратегічну проблему сюди"]
[null,null,null,2,"Будь ласка, впишіть один ключовий виклик, можливість, стратегічну проблему сюди"]
[null,null,null,3,"Будь ласка, впишіть один ключовий виклик, можливість, стратегічну проблему сюди"]
[null,null,null,4,"Будь ласка, впишіть один ключовий виклик, можливість, стратегічну проблему сюди"]

{"sheet":"2.Вибір категорій послуг","index":2,"n_rows":76,"n_cols":10,"rows_kept":76,"cut":false,"hidden":false,"merged":[[73,9,75,9],[16,3,16,7],[74,3,74,7],[75,3,75,7],[73,2,75,2],[45,3,45,7],[67,3,67,7],[26,3,26,7],[41,3,41,7],[43,3,43,7],[59,3,59,7],[69,3,69,7],[72,3,72,7],[64,3,64,7],[63,3,63,7],[57,3,57,7],[23,3,23,7],[30,3,30,7],[29,2,31,2],[31,3,31,7],[22,3,22,7],[35,3,35,7],[42,3,42,7],[48,3,48,7],[56,3,56,7],[55,3,55,7],[53,3,53,7],[73,3,73,7],[60,2,62,2],[63,2,64,2],[32,3,32,7],[40,3,40,7],[39,2,41,2],[39,3,39,7],[65,2,68,2],[47,2,49,2],[50,2,51,2],[54,3,54,7],[32,2,33,2],[50,3,50,7],[51,3,51,7],[70,2,71,2],[44,3,44,7],[10,3,10,7],[13,3,13,7],[12,3,12,7],[21,3,21,7],[19,3,19,7],[17,3,17,7],[15,3,15,7],[20,3,20,7],[16,2,17,2],[65,1,71,1],[14,3,14,7],[71,3,71,7],[70,3,70,7],[62,3,62,7],[61,3,61,7],[60,3,60,7],[66,3,66,7],[68,3,68,7],[43,2,45,2],[55,2,56,2],[49,3,49,7],[65,3,65,7],[58,3,58,7],[20,2,22,2],[72,1,75,1],[8,3,8,7],[27,3,27,7],[36,2,38,2],[36,3,36,7],[38,3,38,7],[18,3,18,7],[37,3,37,7],[28,3,28,7],[27,2,28,2],[34,3,34,7],[24,3,24,7],[25,3,25,7],[54,1,64,1],[39,1,41,1],[47,1,49,1],[1,1,3,4],[57,2,59,2],[10,1,19,1],[20,1,23,1],[34,1,38,1],[24,1,33,1],[42,1,45,1],[24,2,26,2],[50,1,53,1],[6,1,6,5],[52,3,52,7],[47,3,47,7],[33,3,33,7],[11,3,11,7],[10,2,14,2],[29,3,29,7]]}
[null,"Інструмент ЮНІДО для еко-індустріальних парків щодо управління послугами"]
[null,"ВИБЕРІТЬ КАТЕГОРІЇ ПОСЛУГ \nДЛЯ ДЕТАЛЬНОГО РОЗГЛЯДУ",null,null,null,"Назва індустріального парку:",{"$f":"'1.Виклики та можливості'!G2","v":"Впишіть назву парку"}]
[null,null,null,null,null,"Період оцінювання",{"$f":"'1.Виклики та можливості'!G3","v":"Впишіть дату"}]
[null,null,null,null,null,"ПІБ оцінювача",{"$f":"'1.Виклики та можливості'!G4","v":"Впишіть ПІБ"}]
[]
[]
[null,"Інструкція: Метою цього кроку є «швидке сканування» всіх категорій послуг, включених до інструменту, і вибір категорій для детального перегляду на наступному кроці інструменту. Цей крок дозволить ефективно використовувати інструмент у наступних кроках."]
[]
[null,"Основна категорія послуг","Субкатегорія","Послуги керівництва парку з доданою вартістю, включені до кожної категорії",null,null,null,null,"Виберіть категорію та послуги для перегляду на кроці 3?","Коментарі"]
[null,"ПОСЛУГИ КЕРІВНИЦТВА ПАРКУ З ДОДАНОЮ ВАРТІСТЮ"]
[null,"Підтримка бізнесу","Розвиток бізнесу та маркетинг","Допомога з залученням нових компаній до парку, які є синергічними та додають цінність існуючим компаніям-резидентам",null,null,null,null,"Оберіть"]
[null,null,null,"Надавати послуги бізнес-інкубатора, в тому числі зосереджуватися на розвитку МСБ",null,null,null,null,"Оберіть"]
[null,null,null,"Координувати дослідження оцінки ринку, що представляють спільний інтерес для компаній-резидентів (наприклад, доступ до «зелених» ринків)",null,null,null,null,"Оберіть"]
[null,null,null,"Координувати роботу зі ЗМІ та рекламу компаній-резидентів",null,null,null,null,"Оберіть"]
[null,null,null,"Створити комерційний центр в індустріальному парку",null,null,null,null,"Оберіть"]
[null,null,"Представники влади","Підтримка компаній-резидентів у відносинах з органами влади (наприклад, дозволи на експлуатацію, комерційні ліцензії)",null,null,null,null,"Оберіть"]
[null,null,"Фінанси та банки","Допомога компаніям-резидентам у пошуку та отриманні фінансування та субсидій",null,null,null,null,"Оберіть"]
[null,null,null,"Забезпечити надання банківських послуг в індустріальному парку",null,null,null,null,"Оберіть"]
[null,null,"Закупівлі","Сприяти спільній закупівлі промисловістю сировини та технологічних матеріалів",null,null,null,null,"Оберіть"]
[null,null,"Дослідження та інновації (R&D)","Координація взаємодії між компаніями-резидентами та науково-дослідними установами",null,null,null,null,"Оберіть"]
[null,"Співпраця","Громада","Сприяти програмам громади від імені індустріального парку та компаній-резидентів",null,null,null,null,"Оберіть"]
[null,null,null,"Сприяти залученню громади від імені компаній-резидентів",null,null,null,null,"Оберіть"]
[null,null,null,"Підтримка муніципалітетів у розвитку комунальних та міжкомунальних бізнес-локацій",null,null,null,null,"Оберіть"]
[null,null,"Комітети компаній-резидентів","Створення та сприяння регулярним засіданням спільного комітету компаній для пошуку рішень для спільних проблем і можливостей, з якими стикаються індустріальний парк та компанії",null,null,null,null,"Оберіть"]
[null,"Довкілля","Енергія","Координувати програму підтримки підвищення енергоефективності компаній-резидентів",null,null,null,null,"Оберіть"]
[null,null,null,"Забезпечення централізованої енергетичної інфраструктури та комунальних послуг, що становлять спільний інтерес і цінність, для компаній-резидентів",null,null,null,null,"Оберіть"]
[null,null,null,"Координація плану реагування на можливі негативні наслідки через ризики зміни клімату (теплові хвилі та посухи, шторми та повені)",null,null,null,null,"Оберіть"]
[null,null,"Ресурсоефективність","Підтримуйте компанії-резидентів в отриманні доступу до постачальників послуг, які можуть визначити та запровадити ефективні та екологічно чисті методи виробництва",null,null,null,null,"Оберіть"]
[null,null,null,"Сприяти взаємодії між компаніями-резидентами та відповідними зацікавленими сторонами щодо розвитку індустріального симбіозу",null,null,null,null,"Оберіть"]
[null,null,"Відходи","Координувати програму підтримки індустріального парку для збільшення повторного використання та переробки відходів у коротко- та середньостроковій перспективі",null,null,null,null,"Оберіть"]
[null,null,null,"Координувати/надавати централізовані послуги та засоби збору, зберігання, переробки та утилізації відходів",null,null,null,null,"Оберіть"]
[null,null,null,"Співробітництво з компаніями з утилізації та переробки відходів, щоб надавати додаткові послуги парку і компаніям-резидентам",null,null,null,null,"Оберіть"]
[null,null,"Вода","Координувати програму підтримки індустріального парку для збільшення повторного використання води в короткостроковій та середньостроковій перспективі",null,null,null,null,"Оберіть"]
[null,null,null,"Надавати централізовану інфраструктуру водопостачання та комунальні послуги, що становлять спільний інтерес і цінність, для компаній-резидентів",null,null,null,null,"Оберіть"]
[null,"Інфраструктура, комунальні та супутні послуги","Будівлі та споруди","Сприяти розвитку стійких і більш ресурсоефективних («зелених») будівель в індустріальному парку",null,null,null,null,"Оберіть"]
[null,null,"Безпека","Експлуатувати загальну систему контролю безпеки та реагування для індустріального парку.",null,null,null,null,"Оберіть"]
[null,null,"Транспортування","Сприяти спільним транспортним системам між компаніями-резидентами",null,null,null,null,"Оберіть"]
[null,null,null,"Надання централізованих матеріально-технічних і складських засобів і послуг",null,null,null,null,"Оберіть"]
[null,null,null,"Надавати загальні послуги з технічного обслуговування транспортних засобів в індустріальному парку",null,null,null,null,"Оберіть"]
[null,"Управління","Моніторинг та управлінські системи","Сприяти системі управління (якістю, екологічним, соціальним) для індустріального парку, яка відповідає міжнародним стандартам",null,null,null,null,"Оберіть"]
[null,null,null,"Створити та запустити систему моніторингу на рівні парку, включаючи екологічні, соціальні та економічні показники та критичні фактори ризику",null,null,null,null,"Оберіть"]
[null,null,null,"Керувати системою управління та моніторингу скарг, отриманих щодо індустріального парку",null,null,null,null,"Оберіть"]
[null,"Люди","Здоров’я","Надавати централізовані медичні заклади та послуги компаніям-резидентам",null,null,null,null,"Оберіть"]
[null,null,"Працівники та їх навички","Сприяти гнучкому розподілу співробітників між компаніями-резидентами",null,null,null,null,"Оберіть"]
[null,null,null,"Організація тренінгів на теми, що представляють спільний інтерес для компаній-резидентів",null,null,null,null,"Оберіть"]
[null,null,null,"Забезпечити денний догляд (за дітьми) для підтримки працівників компаній-резидентів індустріального парку",null,null,null,null,"Оберіть"]
[null,"ОПЦІОНАЛЬНО: ПОСЛУГИ \"ІНДУСТРІЇ 4.0\""]
[null,"Підтримка бізнесу","Центри послуг, співпраця та кластеризація","Створіть сервісний центр для виробництва запасних частин, інженерних частин, інструментів або макетів моделей за допомогою технології адитивного виробництва на місці",null,null,null,null,"Оберіть"]
[null,null,null,"Створення мереж \"Індустрії 4.0\", напр. інноваційні кластери",null,null,null,null,"Оберіть"]
[null,null,null,"Створення Центру прикладних програм \"Індустрії 4.0\" для демонстрації компонентів в імітованих умовах виробничого середовища",null,null,null,null,"Оберіть"]
[null,"Довкілля","Енергія","Надавати послуги розумних електромереж індустріальному парку та компаніям-резидентам",null,null,null,null,"Оберіть"]
[null,null,null,"Обмін викидним теплом; Діагностика за допомогою АІ на основі IoT для обміну відпрацьованим теплом між заводами або компаніями на основі даних про температуру та вміст тепла в системі",null,null,null,null,"Оберіть"]
[null,null,"Відходи","Надавати послуги інтелектуального управління твердими відходами в індустріальному парку та компаніям-резидентам",null,null,null,null,"Оберіть"]
[null,null,"Вода","Надавати послуги розумної мережі водопостачання в індустріальному парку та компаніям-резидентам",null,null,null,null,"Оберіть"]
[null,"Інфраструктура, комунальні та супутні послуги","Будівлі та споруди","Надавати послуги розумної будівлі в індустріальному парку та компаніям-резидентам",null,null,null,null,"Оберіть"]
[null,null,"Безпека","Використання Smart ID не лише для входу в парк, але й для оплати за користування, як-от їжа, покупки; використання для доступу до заборонених зон; використовувати для підрахунку людей у разі евакуації",null,null,null,null,"Оберіть"]
[null,null,null,"Надання послуг інтелектуальної безпеки та контролю доступу для індустріального парку",null,null,null,null,"Оберіть"]
[null,null,"Транспортування","Надавати послуги розумного транспорту в індустріальному парку та компаніям-резидентам",null,null,null,null,"Оберіть"]
[null,null,null,"Управління часовими інтервалами вантажівок: скорочення часу очікування вантажівок, зони очікування вантажівок, служби безпеки та персоналу на воротах",null,null,null,null,"Оберіть"]
[null,null,null,"Забезпечте відстеження місцезнаходження та маршруту інструментів, контейнерів, людей, доставки та інших транспортних засобів із підключенням до GPS та IoT",null,null,null,null,"Оберіть"]
[null,null,"Інфраструктура","Вдосконалити управління активами за допомогою цифрового \"близнюка\" для інфраструктури з цифровою документацією та моделлю",null,null,null,null,"Оберіть"]
[null,null,null,"Забезпечення інфраструктури \"Індустрії 4.0\", такої як Хмарні сервіси, IoT; впровадження загальнопаркової інфраструктури для автономного руху транспортних засобів",null,null,null,null,"Оберіть"]
[null,null,null,"Надавати високошвидкісні телекомунікаційні та інтернет-послуги компаніям-резидентам і будівлям для комунікацій",null,null,null,null,"Оберіть"]
[null,null,"Налаштування","Віддалене обслуговування інфраструктури через підтримку на основі AR",null,null,null,null,"Оберіть"]
[null,null,null,"Використовуйте роботів для прибирання вулиць, косіння газонів та інших робіт на поверхнях",null,null,null,null,"Оберіть"]
[null,"Управління","Комунікація","Налаштуйте проведення зустрічей у віддаленому форматі",null,null,null,null,"Оберіть"]
[null,null,null,"Стандарт загальнопаркового зв'язку. Уникайте різних протоколів зв'язку, які перешкоджають прямому спілкуванню між різними об'єктами в парку",null,null,null,null,"Оберіть"]
[null,null,null,"3D-модель активів індустріального парку та компаній на основі фотограмметрії для підтримки маркетингової та планувальної діяльності",null,null,null,null,"Оберіть"]
[null,null,null,"\"Індустріальний парк\" як інформаційна платформа",null,null,null,null,"Оберіть"]
[null,null,"Великі дані","Забезпечте послуги щодо обробки великих даних \"бігдата\" та застосунки АІ для аналізу ключових даних компаній, таких як системи управління навколишнім середовищем/енергією",null,null,null,null,"Оберіть"]
[null,null,"Моніторинг","Парк дронів і роботів для спостереження та моніторингу ",null,null,null,null,"Оберіть"]
[null,null,null,"Надання послуг розумного моніторингу в індустріальному парку, включаючи такі елементи, як якість повітря, шум, якість води, трафік",null,null,null,null,"Оберіть"]
[null,"Люди","Здоров’я","Надання першої дистанційної медичної допомоги на основі AR («Телемедицина»)",null,null,null,null,"Оберіть"]
[null,null,"Працівники та їх навички","Створіть навчальний центр \"Індустрія 4.0\" із розумною навчальною фабрикою",null,null,null,null,"Оберіть"]
[null,null,null,"Створіть навчальний центр для VR/AR/MR для навчання конкретним процесам, ситуаціям і дизайну робочого місця, дистанційного обслуговування тощо",null,null,null,null,"Оберіть"]
[null,null,null,"\"Оцінка готовності до \"Індустрії 4.0\" та консультації щодо бізнес-моделі, надання консультацій щодо впровадження концепцій розумних індустріальних парків",null,null,null,null,"Оберіть"]

{"sheet":"3.Перегл послуг в парку","index":3,"n_rows":50,"n_cols":16,"rows_kept":50,"cut":false,"hidden":false,"merged":[[9,14,9,15],[1,1,3,3],[9,5,9,6],[9,9,9,12],[9,7,9,8],[1,5,1,7],[2,5,2,7],[3,5,3,7],[9,1,9,4],[6,1,6,15]]}
[null,"Інструмент ЮНІДО для еко-індустріальних парків щодо управління послугами"]
[null,"ПЕРЕГЛЯД ТА ПРІОРИТЕЗАЦІЯ ПОСЛУГ ІНДУСТРІАЛЬНОГО ПАРКУ З ДОДАНОЮ ВАРТІСТЮ",null,null,"Назва індустріального парку:",{"$f":"'1.Виклики та можливості'!G2","v":"Впишіть назву парку"}]
[null,null,null,null,"Період оцінювання:",{"$f":"'1.Виклики та можливості'!G3","v":"Впишіть дату"}]
[null,null,null,null,"ПІБ оцінювача:",{"$f":"'1.Виклики та можливості'!G4","v":"Впишіть ПІБ"}]
[]
[]
[null,"Інструкція: Цей крок допомагає керівництву парку та компаніям-резидентам переглянути довгий список класифікованих послуг з доданою вартістю та визначити конкретні послуги для індустріального парку. Послуги з доданою вартістю, які є найбільш досяжними, показують найвищі очікувані вигоди та інтерес з боку керівництва парку / компаній, є пріоритетними та рекомендованими для короткострокових дій."]
[]
[]
[null,"ПОСЛУГИ З ДОДАНОЮ ВАРТІСТЮ, ВКЛЮЧЕНІ В ЦЕЙ ІНСТРУМЕНТ",null,null,null,"ПЕРЕГЛЯД НАЯВНИХ ПОСЛУГ",null,"НОВІ ПОСЛУГИ",null,"ПРІОРИТЕЗАЦІЯ ВИЗНАЧЕНИХ ПОСЛУГ ІЗ ДОДАНОЮ ВАРТІСТЮ",null,null,null,null,"ЗАХОДИ"]
[null,"Основна категорія послуг","Субкатегорія","Потенційна послуга з доданою вартістю від керівництва парку","Ціннісна пропозиція для компаній-резидентів та індустріального парку","Чи така послуга вже впроваджена в парку?","Коментарі щодо наявних послуг/ситуації","Чи це може бути можливою новою послугою для вашого парку?","Визначіть нові послуги з доданою вартістю для вашого індустріального парку","Яка ймовірна ДОСЯЖНІСТЬ послуг?","Які ймовірні ВИГОДИ послуг?","ІНТЕРЕС\nкерівництва парку?","ІНТЕРЕС компаній-резидентів?","РЕЙТИНГ пріоритезації (формула)","Виберіть послугу для короткострокових заходів?","Коментарі"]
[null,"Підтримка бізнесу","Розвиток бізнесу та маркетинг","Допомога з залученням нових компаній до парку, які є синергічними та додають цінність існуючим компаніям-резидентам","• Послідовний та скоординований підхід до залучення нових компаній з потенціалом синергії для підтримки існуючих компаній-резидентів","Оберіть",null,"Оберіть",null,"Оберіть","Оберіть","Оберіть","Оберіть",{"$f":"(COUNTIF(J12:M12,\"Висока\")*3)+(COUNTIF(J12:M12,\"Середня\")*2)+(COUNTIF(J12:M12,\"Низька\")*1)+(COUNTIF(J12:M12,\"Потребує уточнення\")*1.5)","v":0},"Оберіть"]
[null,"Підтримка бізнесу","Розвиток бізнесу та маркетинг","Надавати послуги бізнес-інкубатора, в тому числі зосереджуватися на розвитку МСБ","• Залучення нових компаній до індустріального парку\n• Створення робочих місць та розвиток МСБ","Оберіть",null,"Оберіть",null,"Оберіть","Оберіть","Оберіть","Оберіть",0,"Оберіть"]
[null,"Підтримка бізнесу","Розвиток бізнесу та маркетинг","Координувати дослідження оцінки ринку, що представляють спільний інтерес для компаній-резидентів (наприклад, доступ до «зелених» ринків)","• Спільні послуги і, таким чином, нижчі витрати для компаній-резидентів","Оберіть",null,"Оберіть",null,"Оберіть","Оберіть","Оберіть","Оберіть",0,"Оберіть"]
[null,"Підтримка бізнесу","Розвиток бізнесу та маркетинг","Координувати роботу зі ЗМІ та рекламу компаній-резидентів","• Спільні послуги і, таким чином, зниження витрат для компаній-резидентів","Оберіть",null,"Оберіть",null,"Оберіть","Оберіть","Оберіть","Оберіть",0,"Оберіть"]
[null,"Підтримка бізнесу","Розвиток бізнесу та маркетинг","Створити комерційний центр в індустріальному парку","• Всі працівники компаній-резидентів мають легкий доступ до комерційних об'єктів\n• Індустріальний парк стає більш привабливим для кваліфікованих робітників","Оберіть",null,"Оберіть",null,"Оберіть","Оберіть","Оберіть","Оберіть",0,"Оберіть"]
[null,"Підтримка бізнесу","Представники влади","Підтримка компаній-резидентів у відносинах з органами влади (наприклад, дозволи на експлуатацію, комерційні ліцензії)","• Робота з органами влади часто може бути складним і тривалим процесом для компаній-резидентів\n• Збільшення можливостей та ефективності компаній-резидентів щодо отримання необхідних дозволів, ліцензій тощо","Оберіть",null,"Оберіть",null,"Оберіть","Оберіть","Оберіть","Оберіть",0,"Оберіть"]
[null,"Підтримка бізнесу","Фінанси та банки","Допомога компаніям-резидентам у пошуку та отриманні фінансування та субсидій","• Компанії-резиденти мають легший доступ і краще розуміють доступне фінансування та субсидії","Оберіть",null,"Оберіть",null,"Оберіть","Оберіть","Оберіть","Оберіть",0,"Оберіть"]
[null,"Підтримка бізнесу","Фінанси та банки","Забезпечити надання банківських послуг в індустріальному парку","• Всі працівники компаній-резидентів мають легкий доступ до банківських установ\n• Індустріальний парк стає більш привабливим для кваліфікованих робітників","Оберіть",null,"Оберіть",null,"Оберіть","Оберіть","Оберіть","Оберіть",{"$f":"(COUNTIF(J19:M19,\"Висока\")*3)+(COUNTIF(J19:M19,\"Середня\")*2)+(COUNTIF(J19:M19,\"Низька\")*1)+(COUNTIF(J19:M19,\"Потребує уточнення\")*1.5)","v":0},"Оберіть"]
[null,"Підтримка бізнесу","Закупівлі","Сприяти спільній закупівлі промисловістю сировини та технологічних матеріалів","• Компанії-резиденти платять нижчу ціну за сировину через більші обсяги спільних закупівель","Оберіть",null,"Оберіть",null,"Оберіть","Оберіть","Оберіть","Оберіть",0,"Оберіть"]
[null,"Підтримка бізнесу","Дослідження та інновації (R&D)","Координація взаємодії між компаніями-резидентами та науково-дослідними установами","• Компанії-резиденти мають легший доступ до дослідницько-інноваційних установ, що дає переваги інноваційним продуктам і процесам, а також стратегічному розвитку бізнесу","Оберіть",null,"Оберіть",null,"Оберіть","Оберіть","Оберіть","Оберіть",0,"Оберіть"]
[null,"Співпраця","Громада","Сприяти програмам громади від імені індустріального парку та компаній-резидентів","• Зменшення тиску на компанії-резидентів щодо виконання ними власних соціальних програм\n• Хороші та міцні відносини з громадою мають стратегічну та операційну користь для індустріального парку та компаній-резидентів","Оберіть",null,"Оберіть",null,"Оберіть","Оберіть","Оберіть","Оберіть",0,"Оберіть"]
[null,"Співпраця","Громада","Сприяти залученню громади від імені компаній-резидентів","• Керівництво парку забезпечує «загальний голос» від імені компаній-резидентів, що призводить до послідовних повідомлень громади та спрощеного підходу до залучення громади\n• Зменшення тиску на компанії-резидентів щодо самостійної взаємодії з громадами","Оберіть",null,"Оберіть",null,"Оберіть","Оберіть","Оберіть","Оберіть",{"$f":"(COUNTIF(J23:M23,\"Висока\")*3)+(COUNTIF(J23:M23,\"Середня\")*2)+(COUNTIF(J23:M23,\"Низька\")*1)+(COUNTIF(J23:M23,\"Потребує уточнення\")*1.5)","v":0},"Оберіть"]
[null,"Співпраця","Громада","Підтримка муніципалітетів у розвитку комунальних та міжкомунальних бізнес-локацій","• Хороші та міцні стосунки з місцевою владою та громадою мають стратегічну та операційну користь для індустріального парку та компаній-резидентів\n• Комунальні підприємства можуть підтримувати компанії-резидентів (наприклад, переробка чи постачання напівфабрикатів)","Оберіть",null,"Оберіть",null,"Оберіть","Оберіть","Оберіть","Оберіть",0,"Оберіть"]
[null,"Співпраця","Комітети компаній-резидентів","Створення та сприяння регулярним засіданням спільного комітету компаній для пошуку рішень для спільних проблем і можливостей, з якими стикаються індустріальний парк та компанії","• Замість того, щоб кожна компанія намагалася вирішувати власні проблеми, ці комітети сприяють співпраці компаній-резидентів для обміну досвідом, спільного пошуку рішень і повторення передових практик, уже впроваджених деякими компаніями","Оберіть",null,"Оберіть",null,"Оберіть","Оберіть","Оберіть","Оберіть",0,"Оберіть"]
[null,"Довкілля","Енергія","Координувати програму підтримки підвищення енергоефективності компаній-резидентів","• Зменшення споживання енергії та, отже, зниження експлуатаційних витрат для компаній-резидентів\n• Компанії-резиденти мають легший доступ до технічних консультацій, ресурсних матеріалів і професійної мережі з експертами з енергоефективності","Оберіть",null,"Оберіть",null,"Оберіть","Оберіть","Оберіть","Оберіть",{"$f":"(COUNTIF(J26:M26,\"Висока\")*3)+(COUNTIF(J26:M26,\"Середня\")*2)+(COUNTIF(J26:M26,\"Низька\")*1)+(COUNTIF(J26:M26,\"Потребує уточнення\")*1.5)","v":0},"Оберіть"]
[null,"Довкілля","Енергія","Забезпечення централізованої енергетичної інфраструктури та комунальних послуг, що становлять спільний інтерес і цінність, для компаній-резидентів","• Зменшення потреби компаній-резидентів у розміщенні своєї енергетичної інфраструктури та обладнання на місці, що зменшує їх витрати\n• Спільні послуги і, таким чином, зниження витрат для компаній-резидентів","Оберіть",null,"Оберіть",null,"Оберіть","Оберіть","Оберіть","Оберіть",0,"Оберіть"]
[null,"Довкілля","Енергія","Координація плану реагування на можливі негативні наслідки через ризики зміни клімату (теплові хвилі та посухи, шторми та повені)","• Послідовний та скоординований підхід до реагування на ризики зміни клімату, що впливають на індустріальний парк та компанії-резидентів","Оберіть",null,"Оберіть",null,"Оберіть","Оберіть","Оберіть","Оберіть",0,"Оберіть"]
[null,"Довкілля","Ресурсоефективність","Підтримуйте компанії-резидентів в отриманні доступу до постачальників послуг, які можуть визначити та запровадити ефективні та екологічно чисті методи виробництва","• Підвищення ефективності використання ресурсів і, таким чином, зниження операційних витрат для компаній-резидентів\n• Компанії-резиденти мають легший доступ до технічних консультацій, ресурсних матеріалів і професійної мережі з експертами з ресурсоефективного та чистішого виробництва","Оберіть",null,"Оберіть",null,"Оберіть","Оберіть","Оберіть","Оберіть",0,"Оберіть"]
[null,"Довкілля","Ресурсоефективність","Сприяти взаємодії між компаніями-резидентами та відповідними зацікавленими сторонами щодо розвитку індустріального симбіозу","• Компанії-резиденти мають легший доступ до технічних консультацій, ресурсних матеріалів і професійної мережі з експертами з розвитку індустріального симбіозу\n• Переваги промислової синергії багаторазові, включаючи підвищення ефективності використання ресурсів, спільні та скорочені витрати, надійність постачання матеріалів","Оберіть",null,"Оберіть",null,"Оберіть","Оберіть","Оберіть","Оберіть",0,"Оберіть"]
[null,"Довкілля","Відходи","Координувати програму підтримки індустріального парку для збільшення повторного використання та переробки відходів у коротко- та середньостроковій перспективі","• Компанії-резиденти мають легший доступ до технічних консультацій, ресурсних матеріалів і професійної мережі експертів з управління відходами та повторного використання","Оберіть",null,"Оберіть",null,"Оберіть","Оберіть","Оберіть","Оберіть",0,"Оберіть"]
[null,"Довкілля","Відходи","Координувати/надавати централізовані послуги та засоби збору, зберігання, переробки та утилізації відходів","• Підвищення ефективності збирання, зберігання, переробки та утилізації відходів і, таким чином, зниження витрат для компаній-резидентів\n• Краща відповідність компаній-резидентів вимогам законодавства\n• Покращення репутації індустріального парку (та його компаній-резидентіів) серед місцевої громади та регуляторів","Оберіть",null,"Оберіть",null,"Оберіть","Оберіть","Оберіть","Оберіть",0,"Оберіть"]
[null,"Довкілля","Відходи","Співробітництво з компаніями з утилізації та переробки відходів, щоб надавати додаткові послуги парку і компаніям-резидентам","Як вказано вище","Оберіть",null,"Оберіть",null,"Оберіть","Оберіть","Оберіть","Оберіть",0,"Оберіть"]
[null,"Довкілля","Вода","Координувати програму підтримки індустріального парку для збільшення повторного використання води в короткостроковій та середньостроковій перспективі","• Зменшення споживання води та, отже, зниження експлуатаційних витрат компаній-резидентів\n• Зменшення ризиків для компаній-резидентів щодо обмежень користування водою","Оберіть",null,"Оберіть",null,"Оберіть","Оберіть","Оберіть","Оберіть",{"$f":"(COUNTIF(J34:M34,\"Висока\")*3)+(COUNTIF(J34:M34,\"Середня\")*2)+(COUNTIF(J34:M34,\"Низька\")*1)+(COUNTIF(J34:M34,\"Потребує уточнення\")*1.5)","v":0},"Оберіть"]
[null,"Довкілля","Вода","Надавати централізовану інфраструктуру водопостачання та комунальні послуги, що становлять спільний інтерес і цінність, для компаній-резидентів","• Зменшення потреби компаній-резидентів у розміщенні своєї інфраструктури та обладнання водопровідних систем на місці, що зменшує витрати\n• Спільні послуги і, таким чином, зниження витрат для компаній-резидентів","Оберіть",null,"Оберіть",null,"Оберіть","Оберіть","Оберіть","Оберіть",0,"Оберіть"]
[null,"Інфраструктура, комунальні та супутні послуги","Будівлі та споруди","Сприяти розвитку стійких і більш ресурсоефективних («зелених») будівель в індустріальному парку","• Компаніям-резидентам легше будувати та експлуатувати «зелені» будівлі\n• Компанії-резиденти зменшують витрати на використання енергії та води для своїх будівель","Оберіть",null,"Оберіть",null,"Оберіть","Оберіть","Оберіть","Оберіть",{"$f":"(COUNTIF(J36:M36,\"Висока\")*3)+(COUNTIF(J36:M36,\"Середня\")*2)+(COUNTIF(J36:M36,\"Низька\")*1)+(COUNTIF(J36:M36,\"Потребує уточнення\")*1.5)","v":0},"Оберіть"]
[null,"Інфраструктура, комунальні та супутні послуги","Безпека","Експлуатувати загальну систему контролю безпеки та реагування для індустріального парку.","• Спільні і, таким чином, менші витрати для компаній-резидентів\n• Підвищення безпеки в індустріальному парку, а отже, і краща репутація індустріального парку","Оберіть",null,"Оберіть",null,"Оберіть","Оберіть","Оберіть","Оберіть",0,"Оберіть"]
[null,"Інфраструктура, комунальні та супутні послуги","Транспортування","Сприяти спільним транспортним системам між компаніями-резидентами","• Спільна система і, таким чином, зниження транспортних витрат для компаній-резидентів","Оберіть",null,"Оберіть",null,"Оберіть","Оберіть","Оберіть","Оберіть",0,"Оберіть"]
[null,"Інфраструктура, комунальні та супутні послуги","Транспортування","Надання централізованих матеріально-технічних і складських засобів і послуг","• Зменшення потреби в складських площах у компаній-резидентів, а отже, більше площ для виробничої діяльності\n• Спільні приміщення та об'єкти, а отже, зниження логістичних витрат для компаній-резидентів","Оберіть",null,"Оберіть",null,"Оберіть","Оберіть","Оберіть","Оберіть",{"$f":"(COUNTIF(J39:M39,\"Висока\")*3)+(COUNTIF(J39:M39,\"Середня\")*2)+(COUNTIF(J39:M39,\"Низька\")*1)+(COUNTIF(J39:M39,\"Потребує уточнення\")*1.5)","v":0},"Оберіть"]
[null,"Інфраструктура, комунальні та супутні послуги","Транспортування","Надавати загальні послуги з технічного обслуговування транспортних засобів в індустріальному парку","• Кожній компанії-резиденту не потрібно керувати власною службою технічного обслуговування транспортних засобів (компанії-резиденти можуть більше зосередитися на своїй основній діяльності)\n• Спільні послуги та приміщення, що знижує витрати на обслуговування для компаній-резидентів","Оберіть",null,"Оберіть",null,"Оберіть","Оберіть","Оберіть","Оберіть",0,"Оберіть"]
[null,"Управління","Моніторинг та управлінські системи","Сприяти системі управління (якістю, екологічним, соціальним) для індустріального парку, яка відповідає міжнародним стандартам","• Послідовний та злагоджений системний підхід до управління індустріальним парком\n• Зменшення тиску на компанії-резидентів щодо керівництва своїми системами управління","Оберіть",null,"Оберіть",null,"Оберіть","Оберіть","Оберіть","Оберіть",0,"Оберіть"]
[null,"Управління","Моніторинг та управлінські системи","Створити та запустити систему моніторингу на рівні парку, включаючи екологічні, соціальні та економічні показники та критичні фактори ризику","• Послідовний та скоординований підхід системи моніторингу в індустріальному парку\n• Зменшення тиску на компанії-резидентів щодо забезпечення роботи їхніх систем моніторингу","Оберіть",null,"Оберіть",null,"Оберіть","Оберіть","Оберіть","Оберіть",0,"Оберіть"]
[null,"Управління","Моніторинг та управлінські системи","Керувати системою управління та моніторингу скарг, отриманих щодо індустріального парку","• Послідовний та злагоджений підхід до розгляду скарг в індустріальному парку\n• Зменшення тиску на компанії-резидентів з метою запровадження власної системи розгляду скарг","Оберіть",null,"Оберіть",null,"Оберіть","Оберіть","Оберіть","Оберіть",0,"Оберіть"]
[null,"Люди","Здоров’я","Надавати централізовані медичні заклади та послуги компаніям-резидентам","• Всі працівники компаній-резидентів мають легкий доступ до медичних закладів","Оберіть",null,"Оберіть",null,"Оберіть","Оберіть","Оберіть","Оберіть",0,"Оберіть"]
[null,"Люди","Працівники та їх навички","Сприяти гнучкому розподілу співробітників між компаніями-резидентами","• Збільшення ефективності використання працівників компаній-резидентів\n• Спільне використання співробітників між кількома компаніями, що зменшує витрати та/або збільшує доходи","Оберіть",null,"Оберіть",null,"Оберіть","Оберіть","Оберіть","Оберіть",{"$f":"(COUNTIF(J45:M45,\"Висока\")*3)+(COUNTIF(J45:M45,\"Середня\")*2)+(COUNTIF(J45:M45,\"Низька\")*1)+(COUNTIF(J45:M45,\"Потребує уточнення\")*1.5)","v":0},"Оберіть"]
[null,"Люди","Працівники та їх навички","Організація тренінгів на теми, що представляють спільний інтерес для компаній-резидентів","• Компанії-резиденти мають легший доступ до тренінгів\n• Компаніям-резидентам не потрібно самостійно організовувати навчання, що дає змогу заощадити час і кошти","Оберіть",null,"Оберіть",null,"Оберіть","Оберіть","Оберіть","Оберіть",0,"Оберіть"]
[null,"Люди","Працівники та їх навички","Забезпечити денний догляд (за дітьми) для підтримки працівників компаній-резидентів індустріального парку","• Збільшення можливостей компаній-резидентів утримувати та підтримувати працівників з маленькими дітьми\n• Ефективність і зручність для співробітників вивозити і забирати своїх дітей до і після роботи","Оберіть",null,"Оберіть",null,"Оберіть","Оберіть","Оберіть","Оберіть",0,"Оберіть"]
[null,"Інші","Інші",null,null,"Оберіть",null,"Оберіть",null,"Оберіть","Оберіть","Оберіть","Оберіть",0,"Оберіть"]
[null,"Інші","Інші",null,null,"Оберіть",null,"Оберіть",null,"Оберіть","Оберіть","Оберіть","Оберіть",0,"Оберіть"]
[null,"Інші","Інші",null,null,"Оберіть",null,"Оберіть",null,"Оберіть","Оберіть","Оберіть","Оберіть",0,"Оберіть"]

{"sheet":"3.Перегл послуг I4.0 (опціонал)","index":4,"n_rows":43,"n_cols":16,"rows_kept":43,"cut":false,"hidden":false,"merged":[[9,14,9,15],[3,6,3,8],[1,1,3,3],[9,5,9,6],[9,9,9,12],[9,1,9,4],[9,7,9,8],[6,1,6,15],[1,6,1,8],[2,6,2,8]]}
[null,"Інструмент ЮНІДО для еко-індустріальних парків щодо управління послугами"]
[null,"ОПЦІОНАЛЬНО: ПЕРЕГЛЯД ТА ПРІОРИТЕЗАЦІЯ\nПОСЛУГ У СФЕРІ \"ІНДУСТРІЯ 4.0\"",null,null,null,"Назва індустріального парку:",{"$f":"'1.Виклики та можливості'!G2","v":"Впишіть назву парку"}]
[null,null,null,null,null,"Період оцінювання:",{"$f":"'1.Виклики та можливості'!G3","v":"Впишіть дату"}]
[null,null,null,null,null,"ПІБ оцінювача:",{"$f":"'1.Виклики та можливості'!G4","v":"Впишіть ПІБ"}]
[]
[]
[null,"Інструкція:  Цей крок допоможе керівництву парку та компаніям переглянути довгий список послуг у сфері \"Індустрії 4.0\" і визначити конкретні послуги для індустріального парку. Послуги сфери \"Індустрія 4.0\", які є найбільш досяжними, демонструють найвищі очікувані вигоди та інтерес з боку керівництва парку / компаній, є пріоритетними та рекомендованими для короткострокових дій."]
[]
[]
[null,"ПОСЛУГИ У СФЕРІ \"ІНДУСТРІЇ 4.0\", ВКЛЮЧЕНІ ДО ЦЬОГО ІНСТРУМЕНТУ",null,null,null,"ПЕРЕГЛЯД НАЯВНИХ ПОСЛУГ",null,"НОВІ ПОСЛУГИ",null,"ПРІОРИТЕЗАЦІЯ ПОСЛУГ ІЗ ДОДАНОЮ ВАРТІСТЮ",null,null,null,null,"ЗАХОДИ"]
[null,"Основна категорія послуг","Субкатегорія","Потенційні послуги керівництва парку у сфері \"Індустрія 4.0\"","Ціннісна пропозиція для компаній-резидентів та індустріального парку","Чи ця послуга вже надається в парку?","Коментарі щодо наявних послуг/ситуації","Чи це може бути можливою новою послугою для вашого парку?","Визначте нові послуги для індустріального парку у сфері \"Індустрія 4.0\"","Яка ймовірна ДОСЯЖНІСТЬ послуг?","Які ймовірні ВИГОДИ послуг?","ІНТЕРЕС\nкерівництва парку?","ІНТЕРЕС компаній-резидентів?","РЕЙТИНГ пріоритезації (формула)","Виберіть послугу для короткострокових заходів?","Коментарі"]
[null,"Підтримка бізнесу","Центри послуг, співпраця та кластеризація","Створіть сервісний центр для виробництва запасних частин, інженерних частин, інструментів або макетів моделей за допомогою технології адитивного виробництва на місці","• Екологічна: забезпечення більшої стійкості ланцюга постачання, уникнення транспортування частин від постачальників до індустріального парку\n• Економічна: Замість того, щоб кожна компанія намагалася вирішувати власне постачання запасних частин, існує можливість співпраці компаній-резидентів для спільного використання центру обслуговування. Виробники можуть зменшити потребу в складських приміщеннях на користь виробництва компонентів на вимогу поблизу власного підприємства","Оберіть",null,"Оберіть",null,"Оберіть","Оберіть","Оберіть","Оберіть",{"$f":"(COUNTIF(J12:M12,\"Висока\")*3)+(COUNTIF(J12:M12,\"Середня\")*2)+(COUNTIF(J12:M12,\"Низька\")*1)+(COUNTIF(J12:M12,\"Потребує уточнення\")*1.5)","v":0},"Оберіть"]
[null,"Підтримка бізнесу","Центри послуг, співпраця та кластеризація","Створення мереж \"Індустрії 4.0\", напр. інноваційні кластери","• Надання платформи для обміну інформацією з питань \"Індустрії 4.0\"\n• Оскільки технології та програми \"Індустрії 4.0\" є сферою, що швидко розвивається, обмін інформацією між компаніями-резидентами та зовнішніми зацікавленими сторонами, такими як університети, науково-дослідні установи та професійно-технічні школи, є важливим для того, щоб не відставати від поточних інновацій.","Оберіть",null,"Оберіть",null,"Оберіть","Оберіть","Оберіть","Оберіть",0,"Оберіть"]
[null,"Підтримка бізнесу","Центри послуг, співпраця та кластеризація","Створення Центру прикладних програм \"Індустрії 4.0\" для демонстрації компонентів в імітованих умовах виробничого середовища","• Симуляційне тестування обладнання та рішення у сфері \"Індустрія 4.0\" в реальних умовах\n• Компанії, що продають обладнання та програмне забезпечення, пов’язане з \"Індустрією 4.0\"; компанії, які мають намір створити продукти в сфері \"Індустрія 4.0\" і хочуть перевірити їх у реальних умовах, заощадять час і гроші перед виходом на ринок / встановленням","Оберіть",null,"Оберіть",null,"Оберіть","Оберіть","Оберіть","Оберіть",0,"Оберіть"]
[null,"Довкілля","Енергія","Надавати послуги розумних електромереж індустріальному парку та компаніям-резидентам\n• Спеціалізована комунікаційна мережа, яка передає електроенергію та дані, щоб збалансувати попит і пропозицію та підтримувати надійне обслуговування\n• Моніторинг енергопостачання в режимі реального часу для раннього виявлення нестандартних змінних","• Економічна: покращення конкурентних переваг і збільшення інвестиційних можливостей\n• Екологічна: Зменшення споживання енергії та викидів парникових газів, заохочення використання відновлюваної енергії за рахунок зменшення потенційних проблем з періодичним виробництвом електроенергії\n• Соціальна: створення робочих місць, напр. у виробництві відновлюваної енергії","Оберіть",null,"Оберіть",null,"Оберіть","Оберіть","Оберіть","Оберіть",{"$f":"(COUNTIF(J15:M15,\"Висока\")*3)+(COUNTIF(J15:M15,\"Середня\")*2)+(COUNTIF(J15:M15,\"Низька\")*1)+(COUNTIF(J15:M15,\"Потребує уточнення\")*1.5)","v":0},"Оберіть"]
[null,"Довкілля","Енергія","Обмін викидним теплом; Діагностика за допомогою АІ на основі IoT для обміну відпрацьованим теплом між заводами або компаніями на основі даних про температуру та вміст тепла в системі","• Економічна та екологічна: хмарні послуги для зменшення невикористаного залишкового тепла, що призводить до зменшення обсягів виробництва необхідного тепла\n• Компанії отримують інформацію в режимі реального часу про потенційне використання відпрацьованого тепла - в результаті обміну або перетворення тепла","Оберіть",null,"Оберіть",null,"Оберіть","Оберіть","Оберіть","Оберіть",0,"Оберіть"]
[null,"Довкілля","Відходи","Надавати послуги інтелектуального управління твердими відходами в індустріальному парку та компаніям-резидентам","• Економічна: Привабливе бізнес-середовище\n• Екологічна: Зменшення площі на звалищах і скорочення викидів парникових газів\n• Соціальна: Чистіше довкілля та кращене здоров’я","Оберіть",null,"Оберіть",null,"Оберіть","Оберіть","Оберіть","Оберіть",0,"Оберіть"]
[null,"Довкілля","Вода","Надавати послуги розумної мережі водопостачання в індустріальному парку та компаніям-резидентам\n• Мережа існуючої інфраструктури, точне вимірювання та передача даних, датчики по всій мережі для виявлення забруднюючих речовин і витоків, ситуаційна обізнаність, збір води, напр. дощова вода, перероблена та повторно використана стічна вода, відновлена кінетична енергія для виробництва електроенергії тощо","• Економічна: Зниження операційних витрат\n• Екологічна: усунення марних витоків і оптимізоване споживання\n• Соціальна: покращена якість і надійність води","Оберіть",null,"Оберіть",null,"Оберіть","Оберіть","Оберіть","Оберіть",{"$f":"(COUNTIF(J18:M18,\"Висока\")*3)+(COUNTIF(J18:M18,\"Середня\")*2)+(COUNTIF(J18:M18,\"Низька\")*1)+(COUNTIF(J18:M18,\"Потребує уточнення\")*1.5)","v":0},"Оберіть"]
[null,"Інфраструктура, комунальні та супутні послуги","Будівлі та споруди","Надавати послуги розумної будівлі в індустріальному парку та компаніям-резидентам\n• Застосування датчиків, лічильників, систем і програмного забезпечення для моніторингу та керування широким спектром функцій будівлі, напр. освітлення, енергія, вода, опалення, вентиляція та кондиціонування (HVAC), зв'язок, відеоспостереження, охоронна система, пожежна безпека","• Економічна: Зменшення комунальних платежів, зменшення вартості та частоти ремонтів, підвищення норми повернення інвестицій\n• Охорона навколишнього середовища: зменшення викидів енергії та парникових газів, зменшення втрат води та забезпечення виробництва енергії з відновлюваних джерел\n• Соціальна: підвищення задоволеності працівників, покращення рівня комфорту пасажирів, підвищення безпеки, покращення здоров’я та зручності","Оберіть",null,"Оберіть",null,"Оберіть","Оберіть","Оберіть","Оберіть",0,"Оберіть"]
[null,"Інфраструктура, комунальні та супутні послуги","Безпека","Використання Smart ID не лише для входу в парк, але й для оплати за користування, як-от їжа, покупки; використання для доступу до заборонених зон; використовувати для підрахунку людей у разі евакуації","• Соціальні: спрощення оплати, напр. у фудкорті; ідентифікація зниклих безвісти в реальному часі\n• Економічний: ощадливий порядок для готівкового процесу для кадрових служб","Оберіть",null,"Оберіть",null,"Оберіть","Оберіть","Оберіть","Оберіть",0,"Оберіть"]
[null,"Інфраструктура, комунальні та супутні послуги","Безпека","Надання послуг інтелектуальної безпеки та контролю доступу для індустріального парку\n• Дані в режимі реального часу про людей, які входять до парку за допомогою картки доступу або авторизації відвідувачів.","• У разі надзвичайної ситуації буде доступна інформація про загальну кількість людей у парку.\n• Безпека працівників парку та його відвідувачів.","Оберіть",null,"Оберіть",null,"Оберіть","Оберіть","Оберіть","Оберіть",0,"Оберіть"]
[null,"Інфраструктура, комунальні та супутні послуги","Транспортування","Надавати послуги розумного транспорту в індустріальному парку та компаніям-резидентам\n• Збір даних про рух транспорту в реальному часі в поєднанні з даними про дороги та світлофори та застосування аналітики для оптимізації","• Економічна: покращення транспортних бюджетів\n• Екологічна: Зменшення забруднення та викидів парникових газів\n• Соціальна: скорочення заторів і часу в дорозі","Оберіть",null,"Оберіть",null,"Оберіть","Оберіть","Оберіть","Оберіть",{"$f":"(COUNTIF(J22:M22,\"Висока\")*3)+(COUNTIF(J22:M22,\"Середня\")*2)+(COUNTIF(J22:M22,\"Низька\")*1)+(COUNTIF(J22:M22,\"Потребує уточнення\")*1.5)","v":0},"Оберіть"]
[null,"Інфраструктура, комунальні та супутні послуги","Транспортування","Управління часовими інтервалами вантажівок: скорочення часу очікування вантажівок, зони очікування вантажівок, служби безпеки та персоналу на воротах","• Управлінська: Посилення безпеки в індустріальному парку\n• Економічна: Зниження витрат на безпеку, прогнозування прибуття вантажівок на станцію завантаження для кращого планування деталей роботи","Оберіть",null,"Оберіть",null,"Оберіть","Оберіть","Оберіть","Оберіть",0,"Оберіть"]
[null,"Інфраструктура, комунальні та супутні послуги","Транспортування","Забезпечте відстеження місцезнаходження та маршруту інструментів, контейнерів, людей, доставки та інших транспортних засобів із підключенням до GPS та IoT","• Економічна: скорочення часу пошуку інструментів, контейнерів або транспортних засобів, моніторинг пересування людей\n","Оберіть",null,"Оберіть",null,"Оберіть","Оберіть","Оберіть","Оберіть",0,"Оберіть"]
[null,"Інфраструктура, комунальні та супутні послуги","Інфраструктура","Вдосконалити управління активами за допомогою цифрового \"близнюка\" для інфраструктури з цифровою документацією та моделлю","• Економічна: Зниження витрат на експлуатацію та обслуговування інфраструктури (наприклад, електроенергія, очищення стічних вод)\n• Екологічна: Покращення інфраструктурних процесів, таких як станція очищення стічних вод для виробництва електроенергії","Оберіть",null,"Оберіть",null,"Оберіть","Оберіть","Оберіть","Оберіть",{"$f":"(COUNTIF(J25:M25,\"Висока\")*3)+(COUNTIF(J25:M25,\"Середня\")*2)+(COUNTIF(J25:M25,\"Низька\")*1)+(COUNTIF(J25:M25,\"Потребує уточнення\")*1.5)","v":0},"Оберіть"]
[null,"Інфраструктура, комунальні та супутні послуги","Інфраструктура","Забезпечення інфраструктури \"Індустрії 4.0\", такої як Хмарні сервіси, IoT; впровадження загальнопаркової інфраструктури для автономного руху транспортних засобів","• Економічна: рішення у сфері \"Індустрія 4.0\" вимагають відповідної інфраструктури, яку надає національний провайдер або власний Інтернет. Оптимальний тип інфраструктури залежить від таких факторів, як обсяг даних, якість джерел інформації","Оберіть",null,"Оберіть",null,"Оберіть","Оберіть","Оберіть","Оберіть",0,"Оберіть"]
[null,"Інфраструктура, комунальні та супутні послуги","Інфраструктура","Надавати високошвидкісні телекомунікаційні та інтернет-послуги компаніям-резидентам і будівлям для комунікацій","• Спільні послуги і, таким чином, зниження витрат для компаній-резидентів\n• Компанії-резиденти мають можливість застосовувати рішення Індустрії 4.0","Оберіть",null,"Оберіть",null,"Оберіть","Оберіть","Оберіть","Оберіть",0,"Оберіть"]
[null,"Інфраструктура, комунальні та супутні послуги","Налаштування","Віддалене обслуговування інфраструктури через підтримку на основі AR","• Економічна: підвищення якості технічного обслуговування та ремонту, скорочення термінів виконання та транспортних витрат на ремонт та обслуговування\n• Екологічна: Зменшення транспортування та пов'язаних з ним викидів","Оберіть",null,"Оберіть",null,"Оберіть","Оберіть","Оберіть","Оберіть",0,"Оберіть"]
[null,"Інфраструктура, комунальні та супутні послуги","Налаштування","Використовуйте роботів для прибирання вулиць, косіння газонів та інших робіт на поверхнях","• Соціальна: Низькокваліфіковані працівники можуть бути навчені більш складній роботі, такій як контроль роботи робота, ремонт; підготовка маршруту\n• Економічна: Зниження вартості; роботи можуть виконувати послуги 24 години на добу та без вихідних, перериваючись лише автоматичною підзарядкою.","Оберіть",null,"Оберіть",null,"Оберіть","Оберіть","Оберіть","Оберіть",0,"Оберіть"]
[null,"Управління","Комунікація","Налаштуйте проведення зустрічей у віддаленому форматі","• Економічна: Зменшення кількості присутніх зустрічей і краща візуалізація, напр. зі слайдами, ніж телефонні дзвінки.\n• Економічна: Підтримується комп'ютеризація компаній-резидентів","Оберіть",null,"Оберіть",null,"Оберіть","Оберіть","Оберіть","Оберіть",0,"Оберіть"]
[null,"Управління","Комунікація","Стандарт загальнопаркового зв'язку. Уникайте різних протоколів зв'язку, які перешкоджають прямому спілкуванню між різними об'єктами в парку","• Управлінська й економічна: впроваджується єдиний стандарт для протоколів зв’язку, який має загальне поширення","Оберіть",null,"Оберіть",null,"Оберіть","Оберіть","Оберіть","Оберіть",0,"Оберіть"]
[null,"Управління","Комунікація","3D-модель активів індустріального парку та компаній на основі фотограмметрії для підтримки маркетингової та планувальної діяльності","• Візуалізація поточної ситуації та впливу нових проектів на зниження вартості планування та підвищення привабливості індустріального парку","Оберіть",null,"Оберіть",null,"Оберіть","Оберіть","Оберіть","Оберіть",0,"Оберіть"]
[null,"Управління","Комунікація","\"Індустріальний парк\" як інформаційна платформа","• Загальна інформація, поточна інформація та повідомлення, а також сповіщення, що надсилаються на кишенькові пристрої працівників і відвідувачів\n• Соціальна: Миттєві сповіщення, інформація про доступ для відвідувачів, карта індустріального парку, маршрути вантажівок, важлива соціальна інфраструктура, така як їдальня, перша допомога, туалети, екстрені контакти, закриті дороги тощо","Оберіть",null,"Оберіть",null,"Оберіть","Оберіть","Оберіть","Оберіть",{"$f":"(COUNTIF(J33:M33,\"Висока\")*3)+(COUNTIF(J33:M33,\"Середня\")*2)+(COUNTIF(J33:M33,\"Низька\")*1)+(COUNTIF(J33:M33,\"Потребує уточнення\")*1.5)","v":0},"Оберіть"]
[null,"Управління","Великі дані","Забезпечте послуги щодо обробки великих даних \"бігдата\" та застосунки АІ для аналізу ключових даних компаній, таких як системи управління навколишнім середовищем/енергією","• Економічні: спільні хмарні сервіси з АІ для вдосконалення процесів, оптимізації енергоспоживання та покращення екологічних показників\n• Охорона навколишнього середовища: оптимізація енергоспоживання, покращення екологічних показників за допомогою спільної застосунки АІ","Оберіть",null,"Оберіть",null,"Оберіть","Оберіть","Оберіть","Оберіть",{"$f":"(COUNTIF(J34:M34,\"Висока\")*3)+(COUNTIF(J34:M34,\"Середня\")*2)+(COUNTIF(J34:M34,\"Низька\")*1)+(COUNTIF(J34:M34,\"Потребує уточнення\")*1.5)","v":0},"Оберіть"]
[null,"Управління","Моніторинг","Парк дронів і роботів для спостереження та моніторингу ","• Управління, екологія, соціальна та економіка: дрони надають інформацію, недоступну з рівня землі або про події, які відбуваються на відстані\n• Дрони та роботи забезпечують відповідні засоби для спостереження за периметром парку, моніторингу будь-яких викидів або впливу на навколишнє середовище, руху вантажівок і людей або спостереження за будь-якими місцями подій, такими як пожежа чи злочин, для підтримки аналізу ситуації та командування на місці події","Оберіть",null,"Оберіть",null,"Оберіть","Оберіть","Оберіть","Оберіть",0,"Оберіть"]
[null,"Управління","Моніторинг","Надання послуг розумного моніторингу в індустріальному парку, включаючи такі елементи, як якість повітря, шум, якість води, трафік","• Підвищена ефективність використання ресурсів і витрат\n• Точні системи моніторингу в режимі реального часу дозволяють краще керувати та вживати коригувальних заходів там, де необхідно/за потреби","Оберіть",null,"Оберіть",null,"Оберіть","Оберіть","Оберіть","Оберіть",{"$f":"(COUNTIF(J36:M36,\"Висока\")*3)+(COUNTIF(J36:M36,\"Середня\")*2)+(COUNTIF(J36:M36,\"Низька\")*1)+(COUNTIF(J36:M36,\"Потребує уточнення\")*1.5)","v":0},"Оберіть"]
[null,"Люди","Здоров’я","Надання першої дистанційної медичної допомоги на основі AR («Телемедицина»)","• Соціальна: перша медична допомога може бути надана на відстані без парамедиків/спеціалістів швидкої допомоги на місці події;\nу разі пандемії Covid-19: лікар може надати першу допомогу, не піддаючись впливу вірусу, якщо люди в компанії інфіковані","Оберіть",null,"Оберіть",null,"Оберіть","Оберіть","Оберіть","Оберіть",0,"Оберіть"]
[null,"Люди","Працівники та їх навички","Створіть навчальний центр \"Індустрія 4.0\" із розумною навчальною фабрикою","• Соціальна сфера: працівники можуть отримати знання про \"Індустрію 4.0\" з перших рук і отримати відповідну кваліфікацію, що, у свою чергу, забезпечить їм кращу позицію на ринку праці\n• Економічні: Технології \"Індустрії 4.0\" — це не лише технічне питання, але й потребують нових навичок і знань. Розвиток потенціалу та навчання є важливими для цього процесу змін. Центральна навчальна фабрика звільняє компанії від тягаря самостійного проведення індивідуальних програм навчання","Оберіть",null,"Оберіть",null,"Оберіть","Оберіть","Оберіть","Оберіть",0,"Оберіть"]
[null,"Люди","Працівники та їх навички","Створіть навчальний центр для VR/AR/MR для навчання конкретним процесам, ситуаціям і дизайну робочого місця, дистанційного обслуговування тощо","• Економічний: AR для робітників з обслуговування з контекстно-залежною інформацією (історія технічного обслуговування, креслення в розкомпонованому вигляді); Макети для навчання та загальні симуляції (наприклад, безпека, освітні теми), що використовуються спільно, зменшуючи індивідуальні інвестиції; миттєвий доступ до потрібної інформації означає, що співробітники можуть виконувати роботу вищої якості за менший час і з меншою кількістю помилок\n• Соціальний: працівники отримують вищу кваліфікацію навіть на роботах у складних або шкідливих умовах; підвищиться безпека на робочому місці","Оберіть",null,"Оберіть",null,"Оберіть","Оберіть","Оберіть","Оберіть",0,"Оберіть"]
[null,"Люди","Працівники та їх навички","\"Оцінка готовності до \"Індустрії 4.0\" та консультації щодо бізнес-моделі, надання консультацій щодо впровадження концепцій розумних індустріальних парків","• Економічний: розробка відповідної та конкретної дорожньої карти для оцифрування для відповідної компанії-резидента","Оберіть",null,"Оберіть",null,"Оберіть","Оберіть","Оберіть","Оберіть",0,"Оберіть"]
[null,"Інше","Інше",null,null,"Оберіть",null,"Оберіть",null,"Оберіть","Оберіть","Оберіть","Оберіть",0,"Оберіть"]
[null,"Інше","Інше",null,null,"Оберіть",null,"Оберіть",null,"Оберіть","Оберіть","Оберіть","Оберіть",0,"Оберіть"]
[null,"Інше","Інше",null,null,"Оберіть",null,"Оберіть",null,"Оберіть","Оберіть","Оберіть","Оберіть",0,"Оберіть"]

{"sheet":"3.Резюме","index":5,"n_rows":47,"n_cols":18,"rows_kept":47,"cut":false,"hidden":false,"merged":[[17,10,17,17],[17,1,17,8],[7,8,7,10],[8,8,8,10],[7,5,7,6],[8,5,8,6],[9,5,9,6],[10,5,10,6],[11,5,11,6],[12,5,12,6],[9,8,9,10],[10,8,10,10],[11,8,11,10],[12,8,12,10],[13,5,13,7],[13,8,13,11],[14,5,14,13],[7,1,7,2],[8,1,8,2],[9,1,9,2],[10,1,10,2],[11,1,11,2],[12,1,12,2],[1,1,3,3],[1,6,1,8],[2,6,2,8],[3,6,3,8],[13,12,13,13],[6,5,6,13],[7,3,12,3],[7,4,8,4],[9,4,10,4],[11,4,12,4]]}
[null,"Інструмент ЮНІДО для еко-індустріальних парків щодо управління послугами"]
[null,"РЕЗЮМЕ ПОСЛУГ ІЗ ДОДАНОЮ ВАРТІСТЮ, ВИБРАНИХ ДЛЯ КОРОТКОСТРОКОВИХ ЗАХОДІВ",null,null,null,"Назва індустріального парку:",{"$f":"'1.Виклики та можливості'!G2","v":"Впишіть назву парку"}]
[null,null,null,null,null,"Період оцінювання:",{"$f":"'1.Виклики та можливості'!G3","v":"Впишіть дату"}]
[null,null,null,null,null,"ПІБ оцінювача:",{"$f":"'1.Виклики та можливості'!G4","v":"Впишіть ПІБ"}]
[]
[]
[null,null,null,null,null,"ПРІОРИТЕЗАЦІЯ НОВИХ ПОСЛУГ ІНДУСТРІАЛЬНОГО ПАРКУ ТА ПОСЛУГ В СФЕРІ \"ІНДУСТРІЯ 4.0\"                                                 ДЛЯ КОРОТКОСТРОКОВИХ ЗАХОДІВ"]
[null,"ЗАГАЛЬНА КІЛЬКІСТЬ НОВИХ ПОСЛУГ, ЩО ПРОПОНУЮТЬСЯ",null,"ДОСЯЖНІСТЬ","Висока","Всі",null,{"$f":"COUNTIFS('3.Перегл послуг в парку'!J12:J50,\"Висока\",'3.Перегл послуг в парку'!K12:K50,\"Низька\",'3.Перегл послуг в парку'!O12:O50,\"Так\")+COUNTIFS('3.Перегл послуг I4.0 (опціонал)'!J12:J43,\"Висока\",'3.Перегл послуг I4.0 (опціонал)'!K12:K43,\"Низька\",'3.Перегл послуг I4.0 (опціонал)'!O12:O43,\"Так\")","v":0},"Всі",null,null,{"$f":"COUNTIFS('3.Перегл послуг в парку'!J12:J50,\"Висока\",'3.Перегл послуг в парку'!K12:K50,\"Середня\",'3.Перегл послуг в парку'!O12:O50,\"Так\")+COUNTIFS('3.Перегл послуг I4.0 (опціонал)'!J12:J43,\"Висока\",'3.Перегл послуг I4.0 (опціонал)'!K12:K43,\"Середня\",'3.Перегл послуг I4.0 (опціонал)'!O12:O43,\"Так\")","v":0},"Всі",{"$f":"COUNTIFS('3.Перегл послуг в парку'!J12:J50,\"Висока\",'3.Перегл послуг в парку'!K12:K50,\"Висока\",'3.Перегл послуг в парку'!O12:O50,\"Так\")+COUNTIFS('3.Перегл послуг I4.0 (опціонал)'!J12:J43,\"Висока\",'3.Перегл послуг I4.0 (опціонал)'!K12:K43,\"Висока\",'3.Перегл послуг I4.0 (опціонал)'!O12:O43,\"Так\")","v":0}]
[null,{"$f":"B11+B13","v":0},null,null,null,"Значний інтерес з боку керівництва\nпарку та компаній-резидентів",null,{"$f":"COUNTIFS('3.Перегл послуг в парку'!J12:J50,\"Висока\",'3.Перегл послуг в парку'!K12:K50,\"Низька\",'3.Перегл послуг в парку'!L12:L50,\"Висока\",'3.Перегл послуг в парку'!M12:M50,\"Висока\",'3.Перегл послуг в парку'!O12:O50,\"Так\")+COUNTIFS('3.Перегл послуг I4.0 (опціонал)'!J12:J43,\"Висока\",'3.Перегл послуг I4.0 (опціонал)'!K12:K43,\"Низька\",'3.Перегл послуг I4.0 (опціонал)'!L12:L43,\"Висока\",'3.Перегл послуг I4.0 (опціонал)'!M12:M43,\"Висока\",'3.Перегл послуг I4.0 (опціонал)'!O12:O43,\"Так\")","v":0},"Значний інтерес з боку керівництва\nпарку та компаній-резидентів",null,null,{"$f":"COUNTIFS('3.Перегл послуг в парку'!J12:J50,\"Висока\",'3.Перегл послуг в парку'!K12:K50,\"Середня\",'3.Перегл послуг в парку'!L12:L50,\"Висока\",'3.Перегл послуг в парку'!M12:M50,\"Висока\",'3.Перегл послуг в парку'!O12:O50,\"Так\")+COUNTIFS('3.Перегл послуг I4.0 (опціонал)'!J12:J43,\"Висока\",'3.Перегл послуг I4.0 (опціонал)'!K12:K43,\"Середня\",'3.Перегл послуг I4.0 (опціонал)'!L12:L43,\"Висока\",'3.Перегл послуг I4.0 (опціонал)'!M12:M43,\"Висока\",'3.Перегл послуг I4.0 (опціонал)'!O12:O43,\"Так\")","v":0},"Значний інтерес з боку керівництва\nпарку та компаній-резидентів",{"$f":"COUNTIFS('3.Перегл послуг в парку'!J12:J50,\"Висока\",'3.Перегл послуг в парку'!K12:K50,\"Висока\",'3.Перегл послуг в парку'!L12:L50,\"Висока\",'3.Перегл послуг в парку'!M12:M50,\"Висока\",'3.Перегл послуг в парку'!O12:O50,\"Так\")+COUNTIFS('3.Перегл послуг I4.0 (опціонал)'!J12:J43,\"Висока\",'3.Перегл послуг I4.0 (опціонал)'!K12:K43,\"Висока\",'3.Перегл послуг I4.0 (опціонал)'!L12:L43,\"Висока\",'3.Перегл послуг I4.0 (опціонал)'!M12:M43,\"Висока\",'3.Перегл послуг I4.0 (опціонал)'!O12:O43,\"Так\")","v":0}]
[null,"Загальна кількість послуг індустріального парку для короткострокових заходів:",null,null,"Середня","Всі",null,{"$f":"COUNTIFS('3.Перегл послуг в парку'!J12:J50,\"Середня\",'3.Перегл послуг в парку'!K12:K50,\"Низька\",'3.Перегл послуг в парку'!O12:O50,\"Так\")+COUNTIFS('3.Перегл послуг I4.0 (опціонал)'!J12:J43,\"Середня\",'3.Перегл послуг I4.0 (опціонал)'!K12:K43,\"Низька\",'3.Перегл послуг I4.0 (опціонал)'!O12:O43,\"Так\")","v":0},"Всі",null,null,{"$f":"COUNTIFS('3.Перегл послуг в парку'!J12:J50,\"Середня\",'3.Перегл послуг в парку'!K12:K50,\"Середня\",'3.Перегл послуг в парку'!O12:O50,\"Так\")+COUNTIFS('3.Перегл послуг I4.0 (опціонал)'!J12:J43,\"Середня\",'3.Перегл послуг I4.0 (опціонал)'!K12:K43,\"Середня\",'3.Перегл послуг I4.0 (опціонал)'!O12:O43,\"Так\")","v":0},"Всі",{"$f":"COUNTIFS('3.Перегл послуг в парку'!J12:J50,\"Середня\",'3.Перегл послуг в парку'!K12:K50,\"Висока\",'3.Перегл послуг в парку'!O12:O50,\"Так\")+COUNTIFS('3.Перегл послуг I4.0 (опціонал)'!J12:J43,\"Середня\",'3.Перегл послуг I4.0 (опціонал)'!K12:K43,\"Висока\",'3.Перегл послуг I4.0 (опціонал)'!O12:O43,\"Так\")","v":0}]
[null,{"$f":"COUNTIF('3.Перегл послуг в парку'!O12:O50,\"Так\")","v":0},null,null,null,"Значний інтерес з боку керівництва\nпарку та компаній-резидентів",null,{"$f":"COUNTIFS('3.Перегл послуг в парку'!J12:J50,\"Середня\",'3.Перегл послуг в парку'!K12:K50,\"Низька\",'3.Перегл послуг в парку'!L12:L50,\"Висока\",'3.Перегл послуг в парку'!M12:M50,\"Висока\",'3.Перегл послуг в парку'!O12:O50,\"Так\")+COUNTIFS('3.Перегл послуг I4.0 (опціонал)'!J12:J43,\"Середня\",'3.Перегл послуг I4.0 (опціонал)'!K12:K43,\"Низька\",'3.Перегл послуг I4.0 (опціонал)'!L12:L43,\"Висока\",'3.Перегл послуг I4.0 (опціонал)'!M12:M43,\"Висока\",'3.Перегл послуг I4.0 (опціонал)'!O12:O43,\"Так\")","v":0},"Значний інтерес з боку керівництва\nпарку та компаній-резидентів",null,null,{"$f":"COUNTIFS('3.Перегл послуг в парку'!J12:J50,\"Середня\",'3.Перегл послуг в парку'!K12:K50,\"Середня\",'3.Перегл послуг в парку'!L12:L50,\"Висока\",'3.Перегл послуг в парку'!M12:M50,\"Висока\",'3.Перегл послуг в парку'!O12:O50,\"Так\")+COUNTIFS('3.Перегл послуг I4.0 (опціонал)'!J12:J43,\"Середня\",'3.Перегл послуг I4.0 (опціонал)'!K12:K43,\"Середня\",'3.Перегл послуг I4.0 (опціонал)'!L12:L43,\"Висока\",'3.Перегл послуг I4.0 (опціонал)'!M12:M43,\"Висока\",'3.Перегл послуг I4.0 (опціонал)'!O12:O43,\"Так\")","v":0},"Значний інтерес з боку керівництва\nпарку та компаній-резидентів",{"$f":"COUNTIFS('3.Перегл послуг в парку'!J12:J50,\"Середня\",'3.Перегл послуг в парку'!K12:K50,\"Висока\",'3.Перегл послуг в парку'!L12:L50,\"Висока\",'3.Перегл послуг в парку'!M12:M50,\"Висока\",'3.Перегл послуг в парку'!O12:O50,\"Так\")+COUNTIFS('3.Перегл послуг I4.0 (опціонал)'!J12:J43,\"Середня\",'3.Перегл послуг I4.0 (опціонал)'!K12:K43,\"Висока\",'3.Перегл послуг I4.0 (опціонал)'!L12:L43,\"Висока\",'3.Перегл послуг I4.0 (опціонал)'!M12:M43,\"Висока\",'3.Перегл послуг I4.0 (опціонал)'!O12:O43,\"Так\")","v":0}]
[null,"Загальна кількість нових послуг в сфері \"Індустрія 4.0\" для короткострокових заходів:",null,null,"Низька","Всі",null,{"$f":"COUNTIFS('3.Перегл послуг в парку'!J12:J50,\"Низька\",'3.Перегл послуг в парку'!K12:K50,\"Низька\",'3.Перегл послуг в парку'!O12:O50,\"Так\")+COUNTIFS('3.Перегл послуг I4.0 (опціонал)'!J12:J43,\"Низька\",'3.Перегл послуг I4.0 (опціонал)'!K12:K43,\"Низька\",'3.Перегл послуг I4.0 (опціонал)'!O12:O43,\"Так\")","v":0},"Всі",null,null,{"$f":"COUNTIFS('3.Перегл послуг в парку'!J12:J50,\"Низька\",'3.Перегл послуг в парку'!K12:K50,\"Середня\",'3.Перегл послуг в парку'!O12:O50,\"Так\")+COUNTIFS('3.Перегл послуг I4.0 (опціонал)'!J12:J43,\"Низька\",'3.Перегл послуг I4.0 (опціонал)'!K12:K43,\"Середня\",'3.Перегл послуг I4.0 (опціонал)'!O12:O43,\"Так\")","v":0},"Всі",{"$f":"COUNTIFS('3.Перегл послуг в парку'!J12:J50,\"Низька\",'3.Перегл послуг в парку'!K12:K50,\"Висока\",'3.Перегл послуг в парку'!O12:O50,\"Так\")+COUNTIFS('3.Перегл послуг I4.0 (опціонал)'!J12:J43,\"Низька\",'3.Перегл послуг I4.0 (опціонал)'!K12:K43,\"Висока\",'3.Перегл послуг I4.0 (опціонал)'!O12:O43,\"Так\")","v":0}]
[null,{"$f":"COUNTIF('3.Перегл послуг I4.0 (опціонал)'!O12:O43,\"Так\")","v":0},null,null,null,"Значний інтерес з боку керівництва\nпарку та компаній-резидентів",null,{"$f":"COUNTIFS('3.Перегл послуг в парку'!J12:J50,\"Низька\",'3.Перегл послуг в парку'!K12:K50,\"Низька\",'3.Перегл послуг в парку'!L12:L50,\"Висока\",'3.Перегл послуг в парку'!M12:M50,\"Висока\",'3.Перегл послуг в парку'!O12:O50,\"Так\")+COUNTIFS('3.Перегл послуг I4.0 (опціонал)'!J12:J43,\"Низька\",'3.Перегл послуг I4.0 (опціонал)'!K12:K43,\"Низька\",'3.Перегл послуг I4.0 (опціонал)'!L12:L43,\"Висока\",'3.Перегл послуг I4.0 (опціонал)'!M12:M43,\"Висока\",'3.Перегл послуг I4.0 (опціонал)'!O12:O43,\"Так\")","v":0},"Значний інтерес з боку керівництва\nпарку та компаній-резидентів",null,null,{"$f":"COUNTIFS('3.Перегл послуг в парку'!J12:J50,\"Низька\",'3.Перегл послуг в парку'!K12:K50,\"Середня\",'3.Перегл послуг в парку'!L12:L50,\"Висока\",'3.Перегл послуг в парку'!M12:M50,\"Висока\",'3.Перегл послуг в парку'!O12:O50,\"Так\")+COUNTIFS('3.Перегл послуг I4.0 (опціонал)'!J12:J43,\"Низька\",'3.Перегл послуг I4.0 (опціонал)'!K12:K43,\"Середня\",'3.Перегл послуг I4.0 (опціонал)'!L12:L43,\"Висока\",'3.Перегл послуг I4.0 (опціонал)'!M12:M43,\"Висока\",'3.Перегл послуг I4.0 (опціонал)'!O12:O43,\"Так\")","v":0},"Значний інтерес з боку керівництва\nпарку та компаній-резидентів",{"$f":"COUNTIFS('3.Перегл послуг в парку'!J12:J50,\"Низька\",'3.Перегл послуг в парку'!K12:K50,\"Висока\",'3.Перегл послуг в парку'!L12:L50,\"Висока\",'3.Перегл послуг в парку'!M12:M50,\"Висока\",'3.Перегл послуг в парку'!O12:O50,\"Так\")+COUNTIFS('3.Перегл послуг I4.0 (опціонал)'!J12:J43,\"Низька\",'3.Перегл послуг I4.0 (опціонал)'!K12:K43,\"Висока\",'3.Перегл послуг I4.0 (опціонал)'!L12:L43,\"Висока\",'3.Перегл послуг I4.0 (опціонал)'!M12:M43,\"Висока\",'3.Перегл послуг I4.0 (опціонал)'!O12:O43,\"Так\")","v":0}]
[null,null,null,null,null,"Низька",null,null,"Середня",null,null,null,"Висока"]
[null,null,null,null,null,"ВИГОДИ"]
[]
[]
[null,"Запропоновані нові послуги парку з доданою вартістю",null,null,null,null,null,null,null,null,"Запропоновані нові послуги в сфері \"Індустрія 4.0\""]
[]
[]
[]
[]
[]
[]
[]
[]
[]
[]
[null,"Основна категорія послуг","Субкатегорія","Визначені нові послуги з доданою вартістю для вашого індустріального парку","Ймовірна ДОСЯЖНІСТЬ послуг?","Ймовірні ВИГОДИ від послуг?","ІНТЕРЕС з боку керівництва парку?","ІНТЕРЕС з боку компаній-резидентів?","Рейтинг пріоритезації",null,"Основна категорія послуг","Субкатегорія","Визначені нові послуги у сфері \"Індустрія 4.0\" для вашого індустріального парку","Ймовірна ДОСЯЖНІСТЬ послуг?","Ймовірні ВИГОДИ від послуг?","ІНТЕРЕС з боку керівництва парку?","ІНТЕРЕС з боку компаній-резидентів?","Рейтинг пріоритезації"]
[null,"Підтримка бізнесу","Розвиток бізнесу та маркетинг","(порожньо)","Оберіть","Оберіть","Оберіть","Оберіть",0,null,"Підтримка бізнесу","Центри послуг, співпраця та кластеризація","(пусто)","Оберіть","Оберіть","Оберіть","Оберіть",0]
[null,"Підтримка бізнесу","Фінансове та банківське обслуговування","(порожньо)","Оберіть","Оберіть","Оберіть","Оберіть",0,null,"Довкілля","Енергія","(пусто)","Оберіть","Оберіть","Оберіть","Оберіть",0]
[null,"Підтримка бізнесу","Представники влади","(порожньо)","Оберіть","Оберіть","Оберіть","Оберіть",0,null,"Довкілля","Відходи","(пусто)","Оберіть","Оберіть","Оберіть","Оберіть",0]
[null,"Підтримка бізнесу","Закупівлі","(порожньо)","Оберіть","Оберіть","Оберіть","Оберіть",0,null,"Довкілля","Вода","(пусто)","Оберіть","Оберіть","Оберіть","Оберіть",0]
[null,"Підтримка бізнесу","Дослідження та інновації (R&D)","(порожньо)","Оберіть","Оберіть","Оберіть","Оберіть",0,null,"Інфраструктура, комунальні та супутні послуги","Будівлі та споруди","(пусто)","Оберіть","Оберіть","Оберіть","Оберіть",0]
[null,"Співпраця","Громада","(порожньо)","Оберіть","Оберіть","Оберіть","Оберіть",0,null,"Інфраструктура, комунальні та супутні послуги","Безпека","(пусто)","Оберіть","Оберіть","Оберіть","Оберіть",0]
[null,"Співпраця","Комітети компаній-резидентів","(порожньо)","Оберіть","Оберіть","Оберіть","Оберіть",0,null,"Інфраструктура, комунальні та супутні послуги","Транспортування","(пусто)","Оберіть","Оберіть","Оберіть","Оберіть",0]
[null,"Довкілля","Енергія","(порожньо)","Оберіть","Оберіть","Оберіть","Оберіть",0,null,"Інфраструктура, комунальні та супутні послуги","Інфраструктура","(пусто)","Оберіть","Оберіть","Оберіть","Оберіть",0]
[null,"Довкілля","Ресурсоефективність","(порожньо)","Оберіть","Оберіть","Оберіть","Оберіть",0,null,"Інфраструктура, комунальні та супутні послуги","Налаштування","(пусто)","Оберіть","Оберіть","Оберіть","Оберіть",0]
[null,"Довкілля","Відходи","(порожньо)","Оберіть","Оберіть","Оберіть","Оберіть",0,null,"Управління","Комунікація","(пусто)","Оберіть","Оберіть","Оберіть","Оберіть",0]
[null,"Довкілля","Вода","(порожньо)","Оберіть","Оберіть","Оберіть","Оберіть",0,null,"Управління","Великі дані","(пусто)","Оберіть","Оберіть","Оберіть","Оберіть",0]
[null,"Інфраструктура, комунальні та супутні послуги","Будівлі та споруди","(порожньо)","Оберіть","Оберіть","Оберіть","Оберіть",0,null,"Управління","Моніторинг","(пусто)","Оберіть","Оберіть","Оберіть","Оберіть",0]
[null,"Інфраструктура, комунальні та супутні послуги","Безпека","(порожньо)","Оберіть","Оберіть","Оберіть","Оберіть",0,null,"Інші","Інші","(пусто)","Оберіть","Оберіть","Оберіть","Оберіть",0]
[null,"Інфраструктура, комунальні та супутні послуги","Транспортування","(порожньо)","Оберіть","Оберіть","Оберіть","Оберіть",0,null,"Люди","Здоров’я","(пусто)","Оберіть","Оберіть","Оберіть","Оберіть",0]
[null,"Управління","Моніторинги та системи","(порожньо)","Оберіть","Оберіть","Оберіть","Оберіть",0,null,"Люди","Працівники та їх навички","(пусто)","Оберіть","Оберіть","Оберіть","Оберіть",0]
[null,"Інші послуги","Інші","(порожньо)","Оберіть","Оберіть","Оберіть","Оберіть",0]
[null,"Люди","Здоров’я","(порожньо)","Оберіть","Оберіть","Оберіть","Оберіть",0]
[null,"Люди","Працівники та їх навички","(порожньо)","Оберіть","Оберіть","Оберіть","Оберіть",0]

{"sheet":"4.Сфера послуг","index":6,"n_rows":10,"n_cols":13,"rows_kept":10,"cut":false,"hidden":false,"merged":[[6,1,6,9],[1,1,3,2],[8,12,9,12],[8,9,8,11],[8,6,8,8],[8,3,8,5],[1,4,1,5],[2,4,2,5],[3,4,3,5]]}
[null,"Інструмент ЮНІДО для еко-індустріальних парків щодо управління послугами"]
[null,"СФЕРА ПРІОРИТЕЗОВАНИХ \nПОСЛУГ ІЗ ДОДАНОЮ ВАРТІСТЮ",null,"Назва індустріального парку:",{"$f":"'1.Виклики та можливості'!G2","v":"Впишіть назву парку"}]
[null,null,null,"Період оцінювання:",{"$f":"'1.Виклики та можливості'!G3","v":"Впишіть дату"}]
[null,null,null,"ПІБ оцінювача:",{"$f":"'1.Виклики та можливості'!G4","v":"Впишіть ПІБ"}]
[]
[]
[null,"Інструкція: Цей крок допомагає керівництву парку та компаніям-резидентам визначити пріоритетні послуги з доданою вартістю, включаючи варіанти розподілу витрат/доходу та потенційне впровадження вибраних послуг для подальшого їх вдосконалення."]
[]
[null,null,null,"ОПИС ПОСЛУГИ ІЗ ДОДАНОЮ ВАРТІСТЮ",null,null,"РОЗПОДІЛ ВИТРАТ І ДОХОДІВ",null,null,"ВПРОВАДЖЕННЯ",null,null,"Коментарі"]
[null,"Послуги\n(суб)категорія","Послуга із доданою вартістю, вибрана для короткострокових заходів","Які компанії-резиденти є цільовими для послуги із доданою вартістю?","Яка є ціннісна пропозиція?","Які специфічні сфери та особливості будуть охоплені послугою із доданою вартістю","Будь ласка, вкажіть витрати та потоки доходів","Чи можна пропонувати послуги як частину існуючої плати за управління парком?","Які є варіанти відшкодування витрат та/або розподілу вигод?","Яким може бути спосіб надання послуги із доданою вартістю?\n(наприклад, через керівництво парку, компанії-резиденти, спеціалізовану компанію або аутсорсинг)","Які є фактори успіху для вдосконалення та впровадження послуги із доданою вартістю?","Які потенційні проблеми та засоби їх вирішення?"]

{"sheet":"5.Планування заходів","index":7,"n_rows":65,"n_cols":10,"rows_kept":65,"cut":false,"hidden":false,"merged":[[16,1,19,1],[16,2,19,2],[16,4,16,5],[17,4,17,5],[18,4,18,5],[19,4,19,5],[46,1,49,1],[51,2,54,2],[36,1,39,1],[36,2,39,2],[36,4,36,5],[37,4,37,5],[38,4,38,5],[39,4,39,5],[43,4,43,5],[47,4,47,5],[48,4,48,5],[49,4,49,5],[44,4,44,5],[41,1,44,1],[51,1,54,1],[46,4,46,5],[1,6,1,7],[2,6,2,7],[3,6,3,7],[1,1,3,4],[42,4,42,5],[13,4,13,5],[14,4,14,5],[41,4,41,5],[31,4,31,5],[32,4,32,5],[33,4,33,5],[34,4,34,5],[6,1,6,9],[21,1,24,1],[21,2,24,2],[21,4,21,5],[8,9,9,9],[9,3,9,5],[8,1,9,1],[8,2,9,2],[8,3,8,8],[11,1,14,1],[11,2,14,2],[11,4,11,5],[12,4,12,5],[41,9,44,9],[22,4,22,5],[23,4,23,5],[24,4,24,5],[26,1,29,1],[26,2,29,2],[26,4,26,5],[27,4,27,5],[28,4,28,5],[29,4,29,5],[31,1,34,1],[31,2,34,2],[61,1,64,1],[61,2,64,2],[61,4,61,5],[62,4,62,5],[63,4,63,5],[64,4,64,5],[58,4,58,5],[59,4,59,5],[56,1,59,1],[56,2,59,2],[56,4,56,5],[41,2,44,2],[46,2,49,2],[57,4,57,5],[46,9,49,9],[51,4,51,5],[52,4,52,5],[53,4,53,5],[54,4,54,5]]}
[null,"Інструмент ЮНІДО для еко-індустріальних парків щодо управління послугами"]
[null,"ПЛАНУВАННЯ ЗАХОДІВ ДЛЯ ПОСЛУГ ІЗ ДОДАНОЮ ВАРТІСТЮ ТА ПОСЛУГ ІНДУСТРІЇ 4.0",null,null,null,"Назва індустріального парку:",{"$f":"'1.Виклики та можливості'!G2","v":"Впишіть назву парку"}]
[null,null,null,null,null,"Період оцінювання:",{"$f":"'1.Виклики та можливості'!G3","v":"Впишіть дату"}]
[null,null,null,null,null,"ПІБ оцінювача:",{"$f":"'1.Виклики та можливості'!G4","v":"Впишіть ПІБ"}]
[]
[]
[null,"Інструкція: Після визначення пріоритетних послуг із доданою вартістю та послуг \"Індустрії 4.0\" цей крок допомагає керівництву парку та компаніям-резидентам розробити практичний план із короткостроковими діями щодо розробки та впровадження вибраних послуг. Визнаючи, що керівництво парку може вже мати системи для управління своєю діяльністю, передбачається, що планування дій пріоритетних послуг буде адаптовано до існуючих систем."]
[]
[null,"Послуги\n(суб)категорія","Послуги, вибрані для короткострокових заходів","ЗАХОДИ",null,null,null,null,null,"Коментарі та прогрес \nщодо заходів"]
[null,null,null,"Ключові короткострокові заходи",null,null,"Роль лідера","Допоміжна роль","Часовий проміжок"]
[]
[null,{"$f":"IF('4.Сфера послуг'!B11=\"\",\"Категорії будуть відображені автоматично\",'4.Сфера послуг'!B11)","v":"Категорії будуть відображені автоматично"},{"$f":"IF('4.Сфера послуг'!C11=\"\",\"Сфера послуг з Кроку 4 буде відображена автоматично\",'4.Сфера послуг'!C11)","v":"Сфера послуг з Кроку 4 буде відображена автоматично"},"a."]
[null,null,null,"b."]
[null,null,null,"c."]
[null,null,null,"d."]
[]
[null,{"$f":"IF('4.Сфера послуг'!B12=\"\",\"Категорії будуть відображені автоматично\",'4.Сфера послуг'!B12)","v":"Категорії будуть відображені автоматично"},{"$f":"IF('4.Сфера послуг'!C12=\"\",\"Сфера послуг з Кроку 4 буде відображена автоматично\",'4.Сфера послуг'!C12)","v":"Сфера послуг з Кроку 4 буде відображена автоматично"},"a."]
[null,null,null,"b."]
[null,null,null,"c."]
[null,null,null,"d."]
[]
[null,{"$f":"IF('4.Сфера послуг'!B13=\"\",\"Категорії будуть відображені автоматично\",'4.Сфера послуг'!B13)","v":"Категорії будуть відображені автоматично"},{"$f":"IF('4.Сфера послуг'!C13=\"\",\"Сфера послуг з Кроку 4 буде відображена автоматично\",'4.Сфера послуг'!C13)","v":"Сфера послуг з Кроку 4 буде відображена автоматично"},"a."]
[null,null,null,"b."]
[null,null,null,"c."]
[null,null,null,"d."]
[]
[null,{"$f":"IF('4.Сфера послуг'!B14=\"\",\"Категорії будуть відображені автоматично\",'4.Сфера послуг'!B14)","v":"Категорії будуть відображені автоматично"},{"$f":"IF('4.Сфера послуг'!C14=\"\",\"Сфера послуг з Кроку 4 буде відображена автоматично\",'4.Сфера послуг'!C14)","v":"Сфера послуг з Кроку 4 буде відображена автоматично"},"a."]
[null,null,null,"b."]
[null,null,null,"c."]
[null,null,null,"d."]
[]
[null,{"$f":"IF('4.Сфера послуг'!B15=\"\",\"Категорії будуть відображені автоматично\",'4.Сфера послуг'!B15)","v":"Категорії будуть відображені автоматично"},{"$f":"IF('4.Сфера послуг'!C15=\"\",\"Сфера послуг з Кроку 4 буде відображена автоматично\",'4.Сфера послуг'!C15)","v":"Сфера послуг з Кроку 4 буде відображена автоматично"},"a."]
[null,null,null,"b."]
[null,null,null,"c."]
[null,null,null,"d."]
[]
[null,{"$f":"IF('4.Сфера послуг'!B16=\"\",\"Категорії будуть відображені автоматично\",'4.Сфера послуг'!B16)","v":"Категорії будуть відображені автоматично"},{"$f":"IF('4.Сфера послуг'!C16=\"\",\"Сфера послуг з Кроку 4 буде відображена автоматично\",'4.Сфера послуг'!C16)","v":"Сфера послуг з Кроку 4 буде відображена автоматично"},"a."]
[null,null,null,"b."]
[null,null,null,"c."]
[null,null,null,"d."]
[]
[null,{"$f":"IF('4.Сфера послуг'!B17=\"\",\"Категорії будуть відображені автоматично\",'4.Сфера послуг'!B17)","v":"Категорії будуть відображені автоматично"},{"$f":"IF('4.Сфера послуг'!C17=\"\",\"Сфера послуг з Кроку 4 буде відображена автоматично\",'4.Сфера послуг'!C17)","v":"Сфера послуг з Кроку 4 буде відображена автоматично"},"a."]
[null,null,null,"b."]
[null,null,null,"c."]
[null,null,null,"d."]
[]
[null,{"$f":"IF('4.Сфера послуг'!B18=\"\",\"Категорії будуть відображені автоматично\",'4.Сфера послуг'!B18)","v":"Категорії будуть відображені автоматично"},{"$f":"IF('4.Сфера послуг'!C18=\"\",\"Сфера послуг з Кроку 4 буде відображена автоматично\",'4.Сфера послуг'!C18)","v":"Сфера послуг з Кроку 4 буде відображена автоматично"},"a."]
[null,null,null,"b."]
[null,null,null,"c."]
[null,null,null,"d."]
[]
[null,{"$f":"IF('4.Сфера послуг'!B19=\"\",\"Категорії будуть відображені автоматично\",'4.Сфера послуг'!B19)","v":"Категорії будуть відображені автоматично"},{"$f":"IF('4.Сфера послуг'!C19=\"\",\"Сфера послуг з Кроку 4 буде відображена автоматично\",'4.Сфера послуг'!C19)","v":"Сфера послуг з Кроку 4 буде відображена автоматично"},"a."]
[null,null,null,"b."]
[null,null,null,"c."]
[null,null,null,"d."]
[]
[null,{"$f":"IF('4.Сфера послуг'!B20=\"\",\"Категорії будуть відображені автоматично\",'4.Сфера послуг'!B20)","v":"Категорії будуть відображені автоматично"},{"$f":"IF('4.Сфера послуг'!C20=\"\",\"Сфера послуг з Кроку 4 буде відображена автоматично\",'4.Сфера послуг'!C20)","v":"Сфера послуг з Кроку 4 буде відображена автоматично"},"a."]
[null,null,null,"b."]
[null,null,null,"c."]
[null,null,null,"d."]
[]
[null,{"$f":"IF('4.Сфера послуг'!B21=\"\",\"Категорії будуть відображені автоматично\",'4.Сфера послуг'!B21)","v":"Категорії будуть відображені автоматично"},{"$f":"IF('4.Сфера послуг'!C21=\"\",\"Сфера послуг з Кроку 4 буде відображена автоматично\",'4.Сфера послуг'!C21)","v":"Сфера послуг з Кроку 4 буде відображена автоматично"},"a."]
[null,null,null,"b."]
[null,null,null,"c."]
[null,null,null,"d."]